Cogmind - Beta 11.1 @@@ ROGUE MODE // 2022.12.29 @ 18:33:36 Player: Perseus Result: Destroyed by H-88 Terminator with KE Penetrator Performance ------------- Evolutions (9) 4500 Regions Visited (35) 7000 Robots Destroyed (622) 3110 Value Destroyed (29695) 29695 Prototype IDs (134) 2680 Alien Tech Used (17) 3400 Bonus (31870) 31870 TOTAL SCORE: 82255 Bonus ------- High Alert Combat Kills 2448 Follower Combat Kills 4270 Entered Garrisons 400 Met Imprinter 300 Was Imprinted 300 Met Zhirov 300 Met Warlord at Base 500 MAIN.C Attacked Warlord 500 Warlord Defense Kills 9456 Met R17 at Cetus 500 Used Core Reset Matrix 3000 Scanned by Researcher 500 Pursued by Intercept 1000 Met MAIN.C 5000 Destroyed MAIN.C Shell 5000 Friendly Fire -1604 Cogmind --------- Core Integrity 0/1600 Matter 236/425 Energy 100/100 System Corruption 0% Temperature Cool (0) Movement Core (100) Ox1 Location -1/Command Parts ------- > --- POWER (2) -------- (None) > --- PROPULSION (7) --- (None) > --- UTILITY (12) ----- Advanced Signal Interpreter Advanced Terrain Scan Processor Advanced Targeting Computer Microwarp Drive > --- WEAPON (4) ------- (None) > --- INVENTORY (9) ---- Advanced Energy Well (500) Improved Cloaking Device Transdimensional Reconstructor Immobilizer HERF Cannon Cooled Proton Cannon Neutron Cannon Enhanced Nova Cannon Peak State ------------ > --- POWER ------------ Reinforced Quantum Reactor Improved Quantum Reactor > --- PROPULSION ------- Advanced Medium Treads Biometal Heavy Treads Experimental Biometal Heavy Treads Advanced Heavy Siege Treads > --- UTILITY ---------- Experimental Cooling System Huge Storage Unit Experimental Sensor Array Advanced Signal Interpreter Advanced Terrain Scan Processor Advanced Targeting Computer Experimental Targeting Computer Experimental Core Analyzer Phase Armor Advanced Thermal Shield Advanced Shield Generator > --- WEAPON ----------- Potential Cannon Railgun Multirail > --- INVENTORY -------- Fusion Reactor Light Particle Reactor Advanced Heavy Siege Treads Experimental Cooling System Advanced Energy Well Advanced Terrain Scanner Advanced Transmission Jammer Improved Cloaking Device Layered Medium Armor Plating Transdimensional Reconstructor High-powered Transdimensional Reconstructor Integrity Redistributor Integrity Redistributor Integrity Redistributor Microwarp Drive Immobilizer Enhanced Gamma Rifle Vortex Rifle Zionite Phaser-M HERF Cannon Cooled Proton Cannon Neutron Cannon Long-range Phase Cannon Long-range Phase Cannon Vortex Cannon Hypervelocity Multirail Micro-nuke Launcher [Rating: 236] Favorites ----------- Power Light Antimatter Reactor Engine Improved Deuterium Engine Power Core Micro Nuclear Core Reactor Light Antimatter Reactor Propulsion Medium Treads Treads Medium Treads Leg Flexi-carbon Leg Wheel Compact Wheel Flight Unit VTOL Module Utility Improved Signal Interpreter Device Improved Terrain Scanner Storage Huge Storage Unit Processor Improved Signal Interpreter Hackware System Shield Protection Improved Light Armor Plating Artifact Phase Armor Weapon Gauss Rifle Energy Gun Wave Gun Energy Cannon Long-range Phase Cannon Ballistic Gun Gauss Rifle Ballistic Cannon Hardcell Cannon Launcher Micro-nuke Launcher Special Weapon RU-N14's Throwing Claymores v3 Impact Weapon Great Maul Slashing Weapon Scythe Special Melee Weapon Improved Datajack Build | -11 -10 -10 -10 -9 -8 -8 -8 -8 -7 -7 -7 -7 -6 -6 -6 -6 -6 -6 -5 -5 -5 -5 -4 -4 -4 -4 -4 -3 -3 -3 -3 -2 -2 -1 -1 ------- Run | Scr Mat Min Exi Min Mat Gar Mat Gar Fac Low Low Zio Pro Fac Ext Cet Arc Hub Fac Upp Upp War Pro Fac Upp Upp Zhi Pro Res Qua Sec Res Tes Acc Com Slots Evolved 18 | . . . . . 4 . . . 2 . . . . 2 . . . . 2 . . . . 2 . . . . 2 . . 2 . 2 . Power 1 | . . . . . . . . . . . . . . . . . . . 1 . . . . . . . . . . . . . . . . Propulsion 5 | . . . . . 1 . . . . . . . . 1 . . . . . . . . . 1 . . . . 1 . . 1 . . . Utility 10 | . . . . . 2 . . . 2 . . . . 1 . . . . . . . . . 1 . . . . 1 . . 1 . 2 . Weapon 2 | . . . . . 1 . . . . . . . . . . . . . 1 . . . . . . . . . . . . . . . . Parts Attached 1447 | 8 20 12 1 14 57 15 23 10 26 19 49 12 49 56 63 10 3 19 70 35 27 60 105 42 19 54 8 33 113 34 178 16 59 48 80 Power 50 | 1 4 3 . 3 4 . 2 . 2 1 1 . 2 2 . . . . 3 . 1 7 1 . . 2 2 1 1 . 3 . . 1 3 Engine 21 | 1 3 3 . 3 2 . . . 2 . 1 . 2 . . . . . 2 . 1 1 . . . . . . . . . . . . . Core 10 | . 1 . . . 2 . 2 . . 1 . . . 1 . . . . 1 . . 2 . . . . . . . . . . . . . Reactor 19 | . . . . . . . . . . . . . . 1 . . . . . . . 4 1 . . 2 2 1 1 . 3 . . 1 3 Propulsion 124 | 2 2 5 . 5 12 . 4 1 3 1 . . 6 6 9 1 . 1 7 . 2 5 12 7 . 2 . . 7 2 5 4 5 6 2 Treads 98 | . . . . 3 12 . 4 1 3 1 . . 5 1 8 1 . 1 7 . 2 5 6 5 . 2 . . 7 2 5 4 5 6 2 Leg 9 | . . . . . . . . . . . . . . 4 1 . . . . . . . 4 . . . . . . . . . . . . Wheel 16 | 2 2 5 . 2 . . . . . . . . 1 1 . . . . . . . . 1 2 . . . . . . . . . . . Hover . | . . . . . . . . . . . . . . . . . . . . . . . . . . . . . . . . . . . . Flight 1 | . . . . . . . . . . . . . . . . . . . . . . . 1 . . . . . . . . . . . . Utility 847 | 2 3 . . . 11 6 4 1 16 11 30 9 29 22 32 5 3 14 41 23 18 24 62 21 17 37 5 22 84 22 135 11 43 30 54 Device 645 | 1 . . . . 4 2 1 1 7 5 21 3 17 15 31 3 3 9 32 19 16 20 48 19 15 31 4 22 78 17 115 9 29 19 29 Storage 19 | 1 2 . . . 1 . . . . 1 2 1 2 1 1 1 . . 1 . . . 2 . . . . . 1 . . . 2 . . Processor 19 | . . . . . 1 . . . 1 . . . . 2 . . . . . . . 2 1 1 2 1 . . 2 1 . 2 1 1 1 Hackware 13 | . 1 . . . 1 . 2 . 2 . . 1 . 2 . . . . . . . . . 1 . . . . . . . . 1 . 2 Protection 117 | . . . . . 4 4 1 . 6 5 7 4 10 2 . 1 . 5 8 4 2 2 11 . . 5 1 . 3 2 4 . 2 5 19 Artifact 34 | . . . . . . . . . . . . . . . . . . . . . . . . . . . . . . 2 16 . 8 5 3 Weapon 426 | 3 11 4 1 6 30 9 13 8 5 6 18 3 12 26 22 4 . 4 19 12 6 24 30 14 2 13 1 10 21 10 35 1 11 11 21 Energy Gun 153 | 2 4 1 1 1 11 1 4 . 2 3 3 2 1 9 11 . . 1 7 7 4 6 15 5 1 5 1 5 18 7 12 . . . 3 Energy Cannon 84 | . . . . . . . 3 4 . 2 1 . . 3 . . . . 2 . . 3 10 5 . 2 . . 1 3 17 1 4 10 13 Ballistic Gun 99 | 1 3 1 . 3 10 5 3 . 2 . 4 . 7 5 3 2 . 3 6 1 . 8 5 3 . 3 . 4 2 . 4 . 6 1 4 Ballistic Cannon 3 | . . . . . . . . . . . . . . . . . . . . 1 . . . . . . . . . . 1 . 1 . . Launcher 34 | . . 1 . 2 3 2 3 4 . 1 7 . 2 2 . . . . . . . 3 . 1 . . . 1 . . 1 . . . 1 Special Weapon 2 | . . . . . . . . . . . . . . . . . . . . . . 2 . . . . . . . . . . . . . Impact Weapon 18 | . . . . . 2 . . . . . . . 2 5 1 1 . . 3 2 1 1 . . . . . . . . . . . . . Slashing Weapon 5 | . . . . . 2 1 . . . . 1 . . . . . . . . . . . . . . 1 . . . . . . . . . Piercing Weapon . | . . . . . . . . . . . . . . . . . . . . . . . . . . . . . . . . . . . . Special Melee Weapon 28 | . 4 1 . . 2 . . . 1 . 2 1 . 2 7 1 . . 1 1 1 1 . . 1 2 . . . . . . . . . Unidentified Prototypes 66 | . . . . . 5 . . . . . 1 1 1 6 1 3 . 1 2 . . 8 1 2 . . 4 . 1 3 12 . 10 2 2 Corrupted Parts 6 | . . . . . . . . . . . . . 1 . . . . 1 . . . 1 1 . . 1 . 1 . . . . . . . System Corruption 26 | . . . . . . . . . . . . . 1 . . . . 6 . . . 10 5 . . 2 . 2 . . . . . . . Parts Lost 87 | . . 1 . 6 1 . 4 . . 1 . . 3 10 1 . . 1 2 . . 7 9 1 . 4 . . 4 . 2 . 1 1 28 Power 13 | . . . . 1 . . 2 . . 1 . . . . . . . . 1 . . 3 . . . 1 . . 1 . . . . . 3 Propulsion 20 | . . 1 . 2 . . . . . . . . 3 3 . . . 1 . . . 1 3 1 . 1 . . . . . . . . 4 Utility 25 | . . . . . . . 2 . . . . . . 4 . . . . 1 . . 1 1 . . . . . 2 . 2 . 1 . 11 Weapon 29 | . . . . 3 1 . . . . . . . . 3 1 . . . . . . 2 5 . . 2 . . 1 . . . . 1 10 Highest Loss Streak 23 | . . 1 . 5 1 . 3 . . 1 . . 2 3 1 . . 1 1 . . 3 8 1 . 3 . . 2 . 1 . 1 1 23 To Critical Strikes 3 | . . . . . . . . . . . . . . . . . . 1 1 . . . . . . . . . . . . . . . 1 Average Slot Usage (%) 93 | . 100 99 100 99 98 100 99 100 99 99 94 91 90 92 99 93 93 92 95 100 99 97 93 88 84 87 88 88 92 90 82 73 80 81 83 Engine 2 | . 10 14 14 14 7 . . . 6 . 6 7 7 . . . . . 3 5 5 3 . . . . . . . . . . . . . Core 1 | . 3 . . . 1 9 8 9 . 6 . . . 5 . . . . 4 5 5 3 . . . . . . . . . . . . . Reactor 3 | . . . . . . . . . . . . . . . 6 6 6 6 . . . 2 4 5 5 9 10 9 8 9 8 8 8 8 7 Treads 18 | . . . . 9 26 27 27 27 23 22 23 23 21 18 11 20 20 19 19 23 23 22 15 18 15 14 15 15 20 20 15 13 17 16 15 Leg 1 | . . . . . . . . . . . . . . 3 14 . . . . . . . 5 . . . . . . . . . . . . Wheel 1 | . 28 27 28 18 . . . . . . . . . . . . . . . . . . . 1 . . . . . . . . . . . Device 12 | . 6 . . . 3 9 2 16 14 20 15 10 12 20 19 18 16 17 15 16 16 15 10 14 11 12 14 15 18 12 15 14 17 16 11 Storage 6 | . 14 14 14 14 9 9 9 9 7 7 6 6 7 6 6 6 6 6 5 5 5 5 5 5 5 5 5 5 4 4 4 4 4 4 3 Processor 14 | . . . . . 2 9 6 . 7 7 7 7 7 14 20 20 20 20 17 17 17 17 22 21 24 21 21 21 19 22 17 15 17 18 18 Hackware 3 | . 7 14 14 14 13 . 15 1 7 7 7 7 5 . . . . . . . . . . . . . . . . . . . . . 1 Protection 2 | . . . . . 7 9 2 9 6 2 1 4 3 . . 1 3 1 1 . . . . . . 1 . . . . . . . . 5 Energy Gun 6 | . 13 12 2 7 8 8 . . 2 4 2 2 6 4 12 13 13 13 9 10 8 7 5 9 10 9 7 8 8 6 4 . . . 3 Ballistic Gun 13 | . 13 13 14 19 17 17 17 18 14 15 16 15 14 10 5 5 6 6 10 11 11 7 16 10 10 9 10 9 9 9 5 8 7 7 6 Naked Turns . | . . . . . . . . . . . . . . . . . . . . . . . . . . . . . . . . . . . . Heaviest Build 303 | 12 29 28 28 36 61 61 67 68 71 108 229 226 303 119 71 116 116 116 124 121 121 141 141 142 143 143 134 139 142 180 195 191 188 222 236 Greatest Support 270 | 32 32 32 32 40 84 84 84 84 84 84 84 84 84 104 100 120 120 130 140 120 120 127 114 168 168 168 168 168 200 215 220 253 268 270 270 Greatest Overweight (x) 8 | . . 1 . 2 . . . . . 1 2 2 6 4 1 . . . . 1 1 1 1 8 . 1 . . . . . . . . 1 Average Overweight (x) . | . . . . . . . . . . . 1 1 2 . . . . . . . . . . . . . . . . . . . . . . Largest Inventory Capacity 35 | 8 15 15 15 15 20 20 20 20 20 25 35 35 35 35 20 25 25 25 25 25 25 25 25 25 25 25 25 25 30 25 29 29 29 29 29 Average Capacity 24 | 6 14 15 15 15 19 20 20 20 20 21 31 33 34 23 20 24 25 25 25 25 25 25 20 25 25 25 25 25 25 25 26 29 29 29 28 Most Carried 35 | 7 15 15 15 15 20 20 20 20 20 25 34 35 35 33 20 25 25 25 25 25 25 25 25 25 25 25 25 25 25 25 29 29 29 29 29 Average Carried 23 | 3 12 14 14 14 18 19 19 19 19 20 27 32 34 23 19 22 24 24 24 24 24 24 19 24 24 24 24 24 24 24 25 28 28 28 28 Final Capacity 35 | 8 15 15 15 15 20 20 20 20 20 25 35 35 35 20 20 25 25 25 25 25 25 25 25 25 25 25 25 25 25 25 29 29 29 29 29 Final Carried 35 | 5 15 15 15 14 20 20 20 20 20 25 34 35 34 20 20 25 25 25 25 25 25 23 25 25 25 25 25 25 25 25 29 29 29 29 29 Class Distribution -------------------- 24% | Scavenger-Mutant 18% | Scavenger-Skirmisher 7% | Mutant 6% | Hauler-Mutant 5% | Hauler-Skirmisher 4% | Scavenger-Tank 4% | Hauler-Assassin 3% | Alien-Mutant Dominant Class ---------------- Mutant | -10/Materials Mutant | -10/Mines Mutant | -10/Exiles Mutant | -9/Mines Hacker-Tank | -8/Materials Gunner | -8/Garrison Hacker-Gunner | -8/Materials Mutant | -8/Garrison Mutant | -7/Factory Scavenger-Skirmisher | -7/Lower Caves Hauler-Assassin | -7/Lower Caves Hauler-Assassin | -7/Zion Hauler-Skirmisher | -6/Proximity Caves Scavenger-Assassin | -6/Factory Scavenger-Mutant | -6/Extension Commander-Skirmisher | -6/Cetus Scavenger-Skirmisher | -6/Archives Scavenger-Skirmisher | -6/Hub_04(d) Scavenger-Skirmisher | -5/Factory Scavenger-Mutant | -5/Upper Caves Scavenger-Skirmisher | -5/Upper Caves Assassin | -5/Warlord Scavenger-Mutant | -4/Proximity Caves Mutant | -4/Factory Skirmisher | -4/Upper Caves Scavenger-Skirmisher | -4/Upper Caves Scavenger-Mutant | -4/Zhirov Scavenger-Mutant | -3/Proximity Caves Scavenger-Skirmisher | -3/Research Scavenger-Mutant | -3/Quarantine Alien-Skirmisher | -3/Section 7 Alien-Skirmisher | -2/Research Alien-Mutant | -2/Testing Alien-Mutant | -1/Access Alien-Gunner | -1/Command Resources | -11 -10 -10 -10 -9 -8 -8 -8 -8 -7 -7 -7 -7 -6 -6 -6 -6 -6 -6 -5 -5 -5 -5 -4 -4 -4 -4 -4 -3 -3 -3 -3 -2 -2 -1 -1 ----------- Run | Scr Mat Min Exi Min Mat Gar Mat Gar Fac Low Low Zio Pro Fac Ext Cet Arc Hub Fac Upp Upp War Pro Fac Upp Upp Zhi Pro Res Qua Sec Res Tes Acc Com Matter Collected 25256 | 304 414 279 . 387 1411 417 830 252 610 280 1588 1682 862 968 716 149 114 282 1189 700 426 727 1719 366 539 845 20 562 1659 456 2282 146 728 421 926 Remotely . | . . . . . . . . . . . . . . . . . . . . . . . . . . . . . . . . . . . . Salvage Created 31164 | 115 808 605 . 351 2302 378 1006 282 637 182 977 . 633 1373 891 . 258 637 1999 1216 368 2118 1117 330 583 550 311 306 2503 601 2697 227 733 530 3540 Parts 1488 | 11 61 29 . 19 126 23 70 19 38 12 37 . 26 44 40 . 16 26 89 22 22 84 47 10 18 23 7 11 152 21 144 10 23 38 170 Haulers Intercepted 14 | . 2 . . . 5 . 2 . 1 . . . . 2 . . . 1 1 . . . . . . . . . . . . . . . . Recyclers Shooed 19 | . . 2 . 2 1 . . . . . . . . 2 1 . . . 5 . . . . . . . . . 4 . . . 2 . . Parts Field Recycled . | . . . . . . . . . . . . . . . . . . . . . . . . . . . . . . . . . . . . Retrieved Matter . | . . . . . . . . . . . . . . . . . . . . . . . . . . . . . . . . . . . . Parts Self-Destructed 211 | . . . . . . . . . . 4 27 3 28 . . . . . . 16 19 . 38 . 23 37 4 12 . . . . . . . Prevented 37 | . . . . . . . . . . 1 10 . 15 . . . . . . . . . 11 . . . . . . . . . . . . Kills | -11 -10 -10 -10 -9 -8 -8 -8 -8 -7 -7 -7 -7 -6 -6 -6 -6 -6 -6 -5 -5 -5 -5 -4 -4 -4 -4 -4 -3 -3 -3 -3 -2 -2 -1 -1 ------- Run | Scr Mat Min Exi Min Mat Gar Mat Gar Fac Low Low Zio Pro Fac Ext Cet Arc Hub Fac Upp Upp War Pro Fac Upp Upp Zhi Pro Res Qua Sec Res Tes Acc Com Combat Hostiles Destroyed 477 | . 15 5 . 11 37 11 21 15 9 4 25 . 16 18 11 . 2 9 14 13 5 85 14 3 3 7 . 6 29 3 33 2 8 6 37 Guns 268 | . 15 1 . 8 27 9 9 5 8 1 9 . 12 5 11 . 2 9 14 13 5 10 14 3 3 7 . . 29 3 16 1 4 2 13 Cannons 56 | . . . . . . . 5 . 1 . . . . 1 . . . . . . . 4 . . . . . . . . 16 1 3 4 21 AOE 146 | . . 4 . 3 10 2 7 10 . 3 16 . 4 10 . . . . . . . 71 . . . . . 6 . . . . . . . Classes Destroyed 30 | 3 7 . . 3 3 . . . . 2 3 . . . 1 . . 1 . . . 3 . . . 1 . . . . 3 . . . . Worker 26 | 1 3 1 . . 3 . 4 . 2 . . . . 1 . . . 1 4 . . . . . . . . . 2 . . . 2 . 2 Builder 12 | . 1 1 . . . . 2 . 1 . . . . . . . . . 3 . . . . . . . . . 4 . . . . . . Tunneler 10 | 2 2 2 . 1 2 . . . . . . . . . . . . . . . . . . . . . . . . . . . . 1 . Hauler 14 | . 2 . . . 5 . 2 . 1 . . . . 2 . . . 1 1 . . . . . . . . . . . . . . . . Recycler 32 | 1 . 7 . 2 1 . . . . . . . . 4 2 . . . 6 . . . . 1 . . . . 2 2 2 . 1 . 1 Minesweeper 4 | . . . . . . . . . . . 1 . . . . . . . . . 1 . 1 . . 1 . . . . . . . . . Mechanic 3 | . 1 . . . 1 . 1 . . . . . . . . . . . . . . . . . . . . . . . . . . . . Operator 10 | . 2 . . . 1 . 1 1 1 . . . . . 1 . 2 . . . . . . . . . . . . . . . . . 1 Watcher 40 | . 3 . . . 5 1 5 . . . . . . . . . . 1 7 . . . . . . . . . 7 2 4 1 2 1 1 Swarmer 96 | . 5 3 . 3 3 4 10 8 . 3 9 . 4 4 2 . . 3 . . 3 10 4 . 1 1 . 6 5 . 5 . . . . Saboteur 8 | . . . . . . . . . . . . . . . . . . . . . . 7 . . . . . . . . . . . . 1 Grunt 149 | . 10 2 . 2 22 5 2 5 3 . 9 . 7 8 2 . . 2 4 4 . 33 9 . 2 4 . . . . . . . . 14 Brawler 18 | . . . . 1 1 . . . 1 . 1 . 1 . . . . . 1 4 . 8 . . . . . . . . . . . . . Duelist 19 | . . . . . 1 . . . 1 . 4 . 2 . . . . . . 3 . 3 1 . . 1 . . . . . . . . 3 Protector 7 | . . . . . . . . . . . 1 . 1 . . . . . . . . 5 . . . . . . . . . . . . . Researcher 1 | . . . . . . . . . . . . . . . . . . . . . . . . . . . . . . . 1 . . . . Sentry 47 | . . . . . 9 . 7 1 2 . 1 . 1 1 5 . 2 2 1 2 1 . . 1 . . . . 4 . 2 2 . 2 1 Demolisher 5 | . . . . 2 . . . . . . . . . . . . . . . . . 3 . . . . . . . . . . . . . Specialist 3 | . . . . . . . . . . . . . . . . . . 1 . . . 2 . . . . . . . . . . . . . Hunter 23 | . . . . . 1 2 2 1 2 . . . . 4 . . . . . . . 3 . . . . . . 2 . 1 . . 2 3 Programmer 67 | . . . . . . . . . . 1 . . . 1 1 . . 1 8 . 1 5 . 2 . . . . 17 3 13 . 1 . 13 Heavy 2 | . . . . . . . . . . . . . . . . . . . . . . . . . . . . . . . 2 . . . . Q-Series 6 | . . . . . . . . . . . . . . . . . . . . . . . . . . . . . . . 1 . 3 2 . Behemoth 4 | . . . . . . . . . . . . . . . 1 . . . . . . 1 . . . . . . 1 . . . . . 1 S7 Guard 3 | . . . . . . . . . . . . . . . . . . . . . . . . . . . . . . . 3 . . . . Tracker 4 | . . . . . . . . . . . . . . . . . . . . . . . . . . . . . . . 2 . 2 . . Combat Programmer 4 | . . . . . . . . . . . . . . . . . . . . . . . . . . . . . . . 2 . 2 . . Striker 2 | . . . . . . . . . . . . . . . . . . . . . . 2 . . . . . . . . . . . . . Executioner 5 | . . . . . . . . . . . . . . . . . . . . . . 3 . . . . . . . . 2 . . . . Z-Heavy 1 | . . . . . . . . . . . . . . . . . . . . . . . . . . 1 . . . . . . . . . Decomposer 5 | . . . . . . . . . . . 1 . . . . . . . . . 3 . . . 1 . . . . . . . . . . Packrat 4 | . . . . . . . . . . . . . . . . . . . . . . . . . 3 1 . . . . . . . . . Samaritan 17 | . . . . . . . . . . 1 . . . . . . . . . 8 2 . 2 . 4 . . . . . . . . . . Tinkerer 3 | . . . . . . . . . . . 1 . . . . . . . . . . 2 . . . . . . . . . . . . . Assembled 3 | . . . . 3 . . . . . . . . . . . . . . . . . . . . . . . . . . . . . . . Best Kill Streak 18 | 2 8 3 . 2 11 4 10 4 5 3 11 . 5 8 4 . 3 8 5 6 3 18 4 3 2 3 . 3 5 1 6 1 2 3 8 Combat Bots Only 18 | . 3 3 . 2 8 4 6 4 3 3 11 . 5 6 3 . 2 7 3 6 3 18 4 2 2 3 . 3 5 1 5 1 2 2 6 Max Kills in Single Turn 17 | 1 2 3 . 2 4 1 4 3 2 3 6 . 2 3 1 . 1 1 2 1 2 17 1 1 1 2 . 3 2 1 2 1 1 1 2 Gunslinging 1 | . 1 . . . 1 . . . . . . . 1 . . . . . . . . 1 . . . 1 . . 1 . . . . . . Exploded 15 | . . 3 . 2 2 1 2 3 . 3 6 . 1 2 . . . . . . . 15 . . . . . 3 . . . . . . . Melee . | . . . . . . . . . . . . . . . . . . . . . . . . . . . . . . . . . . . . Uniques/NPCs Destroyed 1 | . . . . . . . . . . . . . . . . . . . . . . . . . . . . . . . . . . . 1 MAIN.C Shell (-1/Command) Combat | -11 -10 -10 -10 -9 -8 -8 -8 -8 -7 -7 -7 -7 -6 -6 -6 -6 -6 -6 -5 -5 -5 -5 -4 -4 -4 -4 -4 -3 -3 -3 -3 -2 -2 -1 -1 -------- Run | Scr Mat Min Exi Min Mat Gar Mat Gar Fac Low Low Zio Pro Fac Ext Cet Arc Hub Fac Upp Upp War Pro Fac Upp Upp Zhi Pro Res Qua Sec Res Tes Acc Com Damage Taken 35730 | . 333 188 . 606 1603 299 732 509 451 188 753 . 984 1903 534 41 354 723 1198 314 67 2706 1088 294 247 1187 . 403 1533 669 3467 97 1488 728 10043 Core 4936 | . 36 32 . 126 187 21 155 26 28 . 75 . 68 193 84 . 96 48 39 . . 210 39 18 38 55 . 76 34 202 826 40 649 259 1276 Absorbed by Shields 2223 | . . . . . . 14 . . . . . . . . 167 15 . . . . . . . . 55 164 . 144 434 . 552 34 345 179 120 Reduced by Siege Mode 1996 | . . . . . . . . . . . . . . . . . . . 10 . . 95 . . 7 94 . 32 98 24 303 . 82 . 1251 Redirected to Core 1058 | . . . . . . . . . . . . . . . . . . . . . . . . . . . . . . 137 326 19 241 137 198 Redirected to Shielding 312 | . . . . . . . . . 46 35 . . 67 . . . . . . . . . . . . 42 . . . . . . . . 122 Regen/Repaired (Parts) 3582 | . 17 . . . 402 . 383 . 377 . . . . . . . . . 6 . . . . . . . . . . . . . . . 2397 Core Remaining (%) 57 | 100 . . . 22 . . . 29 . . . . 75 . . . . 50 . . . . 71 . . . . 83 . . 39 . 52 . . Volleys Fired 1793 | 9 94 53 . 61 132 59 67 29 37 27 34 . 62 56 40 5 16 25 88 41 17 51 127 26 24 42 11 22 120 26 151 10 78 27 126 Largest 4 | 2 2 2 . 2 3 3 3 3 3 3 3 . 3 3 3 3 3 3 4 4 4 4 4 4 4 4 1 4 4 4 4 3 3 4 4 Hottest 310 | 60 63 63 . 63 113 113 128 128 128 120 120 . 133 183 185 190 190 190 241 241 236 234 219 225 222 227 81 234 239 239 286 170 240 225 310 Shots Fired 4303 | 16 169 67 . 106 389 115 183 62 95 51 92 . 124 136 100 15 41 73 272 125 63 127 223 64 83 132 11 33 314 54 370 28 135 56 379 Gun 3580 | 16 169 65 . 101 380 107 126 33 76 37 72 . 117 117 100 15 41 73 265 125 63 95 188 56 83 131 11 26 313 49 233 18 50 23 206 Cannon 614 | . . . . . . . 49 13 19 13 1 . . 11 . . . . 7 . . 14 35 8 . 1 . . 1 5 137 10 85 33 172 Launcher 99 | . . 2 . 5 9 8 8 16 . 1 19 . 7 8 . . . . . . . 8 . . . . . 7 . . . . . . 1 Special 10 | . . . . . . . . . . . . . . . . . . . . . . 10 . . . . . . . . . . . . . Kinetic 2125 | 8 80 48 . 73 253 49 117 33 58 26 53 . 86 81 31 5 16 24 129 66 34 39 131 27 48 80 . 9 142 23 129 18 57 23 129 Thermal 1665 | 7 41 . . . 127 58 58 13 37 24 20 . 31 20 53 10 25 49 132 55 29 69 86 37 35 52 11 17 131 17 187 7 73 24 130 Explosive 91 | . . 2 . 4 9 8 8 16 . . 9 . 7 8 . . . . . . . 12 . . . . . 7 . . . . . . 1 Electromagnetic 291 | 1 48 17 . 29 . . . . . 1 10 . . 27 . . . . . . . . . . . . . . 11 5 43 3 5 8 83 Entropic 33 | . . . . . . . . . . . . . . . . . . . . . . 7 . . . . . . 1 . 8 . . 1 16 Phasic 98 | . . . . . . . . . . . . . . . 16 . . . 11 4 . . 6 . . . . . 29 9 3 . . . 20 Robot Hit Streak 40 | 8 10 7 . 7 18 13 18 9 12 15 18 . 18 7 10 4 18 7 13 20 9 10 9 17 19 10 7 8 27 21 33 8 28 33 40 Robot Miss Streak 10 | 1 5 3 . 4 10 2 6 2 4 3 3 . 4 4 7 3 1 4 9 3 5 4 4 3 3 3 1 1 6 5 4 2 2 1 3 Penetration Max 1 | . . . . . . . 1 1 1 . 1 . . 1 1 . 1 . 1 1 1 1 . . 1 . . . 1 . 1 . 1 1 1 Secondary Targets 34 | . 1 . . . 3 1 . . 2 . . . 4 . 1 . 1 4 1 2 . 1 4 . 2 2 . . 5 . . . . . . Max Gunslinging Chain 2 | . 1 . . . 1 1 . . 1 . . . 1 . 1 . 1 1 1 1 . 1 1 . 1 2 . . 1 . . . . . . Shots Hit Robots 2734 | 12 81 39 100 57 235 48 106 29 65 29 51 2 67 84 124 10 34 45 139 92 39 76 99 33 56 82 14 12 175 27 262 15 85 32 278 Core Hits 1419 | 5 41 21 . 20 118 24 49 23 26 9 60 . 42 53 48 3 12 18 59 51 18 159 46 11 25 27 7 14 94 14 129 10 32 24 127 Critical Kills 16 | . . . . . . . . . . . . . . . 1 . 1 . 3 . 1 . . . 1 1 . . 3 1 1 . 2 . 1 Critical Parts Destroyed 34 | . . . . 1 2 . . 1 1 . . . . 2 3 1 . 1 3 1 1 . 2 1 . 1 . . 6 1 2 . . . 4 Critical Strikes 118 | . . . . 1 12 1 1 1 1 1 2 . 1 2 4 2 3 5 9 4 3 9 3 3 2 3 . . 16 2 11 1 2 2 11 Burn 49 | . . . . . 10 1 . . . 1 2 . 1 . . 1 2 4 3 3 1 7 1 2 1 1 . . 4 . 4 . . . . Meltdown 3 | . . . . . . . . . . . . . . . . . . . . . . . . . . . . . . . . . 2 . 1 Destroy 55 | . . . . 1 2 . 1 1 1 . . . . . 4 1 1 1 6 1 2 . 2 1 1 2 . . 12 2 4 . . 1 8 Blast 1 | . . . . . . . . . . . . . . . . . . . . . . . . . . . . . . . 1 . . . . Corrupt 6 | . . . . . . . . . . . . . . . . . . . . . . . . . . . . . . . 2 1 . 1 2 Smash 2 | . . . . . . . . . . . . . . 2 . . . . . . . . . . . . . . . . . . . . . Sever 2 | . . . . . . . . . . . . . . . . . . . . . . 2 . . . . . . . . . . . . . Melee Attacks 254 | . 1 1 100 . 9 5 . . 2 . 4 2 9 14 45 8 . . 18 8 6 15 . . . 2 5 . . . . . . . . Impact 69 | . . . . . 6 . . . . . . . 9 12 . 7 . . 17 2 3 13 . . . . . . . . . . . . . Slashing 12 | . . . . . 3 5 . . . . 4 . . . . . . . . . . . . . . . . . . . . . . . . Piercing . | . . . . . . . . . . . . . . . . . . . . . . . . . . . . . . . . . . . . Sneak Attacks 179 | . 1 1 100 . . . . . 2 . 2 2 . 6 45 1 . . 2 6 3 2 . . . 2 4 . . . . . . . . Combat Hostiles . | . . . . . . . . . . . . . . . . . . . . . . . . . . . . . . . . . . . . Follow-up Attacks . | . . . . . . . . . . . . . . . . . . . . . . . . . . . . . . . . . . . . Damage Inflicted 88576 | 142 1159 979 . 915 4726 1330 3113 1717 1301 645 2524 . 1810 3066 1983 320 904 1342 4026 2241 804 17604 1926 867 1294 1847 242 746 5212 862 7576 560 3214 1490 10089 Guns 51925 | 142 1039 556 . 819 3537 873 1604 344 1012 555 753 . 1026 1452 1983 320 904 1342 3899 2241 804 1728 1926 867 1294 1847 242 261 5212 740 4980 378 1229 621 5395 Cannons 11370 | . . . . . . . 750 189 289 . . . . 171 . . . . . . . . . . . . . . . 122 2596 182 1985 620 4466 Explosions 24257 | . 120 423 . 96 1189 457 759 1184 . 90 1553 . 784 1057 . . . . . . . 15583 . . . . . 485 . . . . . 249 228 Melee 731 | . . . . . . . . . . . 218 . . 386 . . . . 127 . . . . . . . . . . . . . . . . Ramming . | . . . . . . . . . . . . . . . . . . . . . . . . . . . . . . . . . . . . Kinetic 29923 | 63 575 465 . 685 2179 465 1474 344 759 369 500 . 668 918 519 108 443 538 1978 1057 335 655 1046 434 646 999 . 92 2414 396 3183 378 1744 621 2873 Thermal 27373 | 66 412 273 . . 1358 408 880 189 542 214 253 . 358 374 1002 212 461 804 1921 1184 469 1073 706 433 648 848 242 169 2472 344 3530 148 1343 643 3394 Explosive 13675 | . . 150 . 64 1189 457 759 1184 . . 1097 . 784 1057 . . . . . . . 6449 . . . . . 485 . . . . . . . Electromagnetic 4978 | 13 172 91 . 166 . . . . . 62 456 . . 331 . . . . . . . . . . . . . . 203 122 749 34 127 226 2226 Impact 513 | . . . . . . . . . . . . . . 386 . . . . 127 . . . . . . . . . . . . . . . . Slashing 511 | . . . . . . . . . . . 218 . . . . . . . . . . 293 . . . . . . . . . . . . . Piercing . | . . . . . . . . . . . . . . . . . . . . . . . . . . . . . . . . . . . . Entropic 10122 | . . . . . . . . . . . . . . . . . . . . . . 9134 . . . . . . . . 114 . . . 874 Phasic 1481 | . . . . . . . . . . . . . . . 462 . . . . . . . 174 . . . . . 123 . . . . . 722 Highest Corruption 16 | . . . . . . . 6 6 . . . . 1 . 1 1 1 8 6 3 1 16 16 3 3 1 . 2 4 . 2 . . . . Average Corruption 3 | . . . . . . . 6 6 . . . . 1 . 1 1 1 1 2 2 1 4 12 3 1 1 . 2 1 . 1 . . . . Corruption Purged 52 | . . . . . . . . . . . . . . . . . 1 . 8 3 1 . 11 . 3 2 . . 13 . 10 . . . . Corruption Blocked 20 | . . . . . . . . . . . . . . . . . . . . . . . . . . 8 . . 6 1 . . . 5 . Effects 166 | . . . . . . . 23 26 . . . . . . 5 4 2 1 12 24 . 14 32 . . 1 . . 13 . 9 . . . . Message Errors 56 | . . . . . . . 7 7 . . . . . . 2 1 2 . 1 13 . 6 10 . . . . . 4 . 3 . . . . Matter Fused 38 | . . . . . . . 5 4 . . . . . . 1 1 . 1 5 5 . 2 11 . . 1 . . 1 . 1 . . . . Heat Flow Errors 20 | . . . . . . . 4 3 . . . . . . . 1 . . 2 1 . 1 4 . . . . . 2 . 2 . . . . Energy Discharges 12 | . . . . . . . 2 2 . . . . . . 1 . . . . 1 . 2 2 . . . . . 1 . 1 . . . . Parts Rejected 3 | . . . . . . . 1 1 . . . . . . . . . . . . . 1 . . . . . . . . . . . . . Data Loss (minor) 13 | . . . . . . . 1 5 . . . . . . . . . . 1 1 . 1 3 . . . . . 1 . . . . . . Data Loss (major) 7 | . . . . . . . 1 2 . . . . . . . . . . 1 1 . . . . . . . . 1 . 1 . . . . Misfires 8 | . . . . . . . 1 . . . . . . . . . . . . 1 . 1 2 . . . . . 2 . 1 . . . . Alerts 3 | . . . . . . . . 1 . . . . . . 1 1 . . . . . . . . . . . . . . . . . . . Weapon Failures 6 | . . . . . . . 1 1 . . . . . . . . . . 2 1 . . . . . . . . 1 . . . . . . Overload Shots . | . . . . . . . . . . . . . . . . . . . . . . . . . . . . . . . . . . . . Overflow Damage 1623 | . . . . . 10 8 158 72 17 . 92 . 5 272 . . . . 87 . . 576 . . . . . 58 . 7 39 . 14 156 52 Projectiles 272 | . . . . . . . 34 . 17 . . . . . . . . . . . . . . . . . . . . 7 39 . 14 109 52 Explosions 969 | . . . . . 10 8 124 72 . . 58 . 5 11 . . . . . . . 576 . . . . . 58 . . . . . 47 . Melee 382 | . . . . . . . . . . . 34 . . 261 . . . . 87 . . . . . . . . . . . . . . . . Knockbacks 6 | . . . . . . . . . . . . . . 2 . . . . . . . . . . . . . . . . . . 4 . . Impact 2 | . . . . . . . . . . . . . . 2 . . . . . . . . . . . . . . . . . . . . . Kinetic 4 | . . . . . . . . . . . . . . . . . . . . . . . . . . . . . . . . . 4 . . Secondary . | . . . . . . . . . . . . . . . . . . . . . . . . . . . . . . . . . . . . Self-Inflicted Damage 681 | . 33 17 . . 27 21 66 129 . . 21 . . 148 . . . . . . . 86 . . . . . 17 . . . . . 41 75 Shots 19 | . 1 1 . . 2 1 2 4 . . 1 . . 2 . . . . . . . 2 . . . . . 1 . . . . . 1 1 Rammed . | . . . . . . . . . . . . . . . . . . . . . . . . . . . . . . . . . . . . Targets Rammed . | . . . . . . . . . . . . . . . . . . . . . . . . . . . . . . . . . . . . Kicked . | . . . . . . . . . . . . . . . . . . . . . . . . . . . . . . . . . . . . Crushed . | . . . . . . . . . . . . . . . . . . . . . . . . . . . . . . . . . . . . Highest Temperature 356 | 15 66 102 . 26 325 79 328 226 203 . 64 . 257 251 13 35 . 216 297 210 198 158 234 108 195 356 50 199 237 78 251 108 10 5 324 Average Temperature 65 | 10 18 46 . 7 81 32 79 69 77 . 25 . 77 49 10 35 . 35 84 79 69 43 65 41 75 113 27 53 61 29 61 58 10 3 64 Received Heat Transfer 4047 | . 102 72 . 74 792 109 72 63 81 . 117 . 318 327 120 . 18 123 72 81 . 297 204 9 21 220 . 18 30 36 102 12 80 18 459 Effects 6 | . . . . . 1 . . . . . . . 1 . . . . . . 1 . . 1 . . 2 . . . . . . . . . Energy Bleed 3 | . . . . . 1 . . . . . . . . . . . . . . 1 . . 1 . . . . . . . . . . . . Interference 2 | . . . . . . . . . . . . . 1 . . . . . . . . . . . . 1 . . . . . . . . . Short Circuit 1 | . . . . . . . . . . . . . . . . . . . . . . . . . . 1 . . . . . . . . . Siege Activations 58 | . . . . . . . . . . . . . . . . . . . 1 . . 3 . . 2 7 . 1 11 2 16 . 7 1 7 Total Turns 1082 | . . . . . . . . . . . . . . . . . . . 13 . . 42 . . 14 179 . 14 164 22 299 . 131 4 200 Longest Duration 76 | . . . . . . . . . . . . . . . . . . . 13 . . 19 . . 9 76 . 14 41 12 41 . 47 4 62 Robots Corrupted 5 | . . . . . . . . . . . . . . 2 . . . . . . . . . . . . . . . . 1 . . . 2 Combat Hostiles 5 | . . . . . . . . . . . . . . 2 . . . . . . . . . . . . . . . . 1 . . . 2 Parts Fried 39 | . . . . . . . . . . . 1 . 1 5 . . . . 2 . . . . . . 2 . . . 2 9 . . . 17 Impact Corruptions 8 | . . . . . . . . . . . . . . 7 . . . . 1 . . . . . . . . . . . . . . . . Robots Melted 5 | . . . . . . . . . . . . . . . . . . 1 . 1 . . . . . . . . . . . . 2 . 1 Combat Hostiles 2 | . . . . . . . . . . . . . . . . . . . . . . . . . . . . . . . . . 1 . 1 Parts Melted 58 | . 1 . . . 5 . 1 . . . 1 . 1 1 1 . 1 5 9 2 . 2 1 2 1 . . . 8 2 6 . 4 . 4 Heat Transferred 41591 | 150 750 400 . . 3725 832 1258 259 888 457 629 . 777 519 1135 485 968 1816 3609 2422 782 2135 1110 740 1073 1299 372 259 3441 444 4847 148 1258 549 2055 Parts Sabotaged . | . . . . . . . . . . . . . . . . . . . . . . . . . . . . . . . . . . . . Parts Stolen 1 | . . . . . . . . . . 1 . . . . . . . . . . . . . . . . . . . . . . . . . Parts Stripped . | . . . . . . . . . . . . . . . . . . . . . . . . . . . . . . . . . . . . Power Chain Reactions 4 | . 1 . . . . . . . . 1 . . . . . . . . . . . . . . . . . . . . . . . . 2 Missiles Intercepted . | . . . . . . . . . . . . . . . . . . . . . . . . . . . . . . . . . . . . Alert | -11 -10 -10 -10 -9 -8 -8 -8 -8 -7 -7 -7 -7 -6 -6 -6 -6 -6 -6 -5 -5 -5 -5 -4 -4 -4 -4 -4 -3 -3 -3 -3 -2 -2 -1 -1 ------- Run | Scr Mat Min Exi Min Mat Gar Mat Gar Fac Low Low Zio Pro Fac Ext Cet Arc Hub Fac Upp Upp War Pro Fac Upp Upp Zhi Pro Res Qua Sec Res Tes Acc Com Peak Influence 1360 | 20 459 484 . 213 673 1360 1059 802 461 . . . . 499 1135 1025 619 930 775 . . . . 177 . . . . 406 297 688 481 373 208 1202 Initial 663 | . 13 178 . . 31 437 663 224 420 . . . . 164 189 635 410 216 368 . . . . 143 . . . . . 216 114 375 270 105 80 Average 364 | 5 236 264 . 93 245 988 541 526 372 . . . . 231 480 877 568 623 486 . . . . 83 . . . . 119 209 367 406 248 113 590 Maximum Alert Level 4 | . 2 2 . 1 2 4 3 3 2 . . . . 2 4 3 2 3 3 . . . . . . . . . 2 1 2 2 1 1 4 Low Security (%) 33 | 100 28 50 . 92 52 . . . . . . . . 55 6 . . . . . . . . 100 . . . . 77 45 16 . 21 98 14 Level 1 34 | . 65 35 . 7 32 . 60 26 60 . . . . 25 46 . . 8 29 . . . . . . . . . 21 54 47 53 78 1 18 Level 2 18 | . 5 14 . . 14 19 4 38 39 . . . . 19 18 12 100 51 61 . . . . . . . . . 1 . 36 46 . . 28 Level 3 10 | . . . . . . 39 34 34 . . . . . . 27 87 . 40 8 . . . . . . . . . . . . . . . 22 Level 4 3 | . . . . . . 41 . . . . . . . . 1 . . . . . . . . . . . . . . . . . . . 16 Level 5 . | . . . . . . . . . . . . . . . . . . . . . . . . . . . . . . . . . . . . High Security . | . . . . . . . . . . . . . . . . . . . . . . . . . . . . . . . . . . . . Max Security . | . . . . . . . . . . . . . . . . . . . . . . . . . . . . . . . . . . . . Squads Dispatched 87 | . 6 . . 1 7 . 4 . 6 . 1 . 1 7 2 . . 6 6 . . . 1 2 . . . . 6 1 14 . 8 2 6 Investigation 14 | . 4 . . . 3 . 2 . 1 . . . . 1 . . . 1 . . . . 1 . . . . . . . . . 1 . . Extermination 32 | . . . . . . . . . 1 . . . . 2 . . . 1 3 . . . . 2 . . . . 6 1 6 . 4 2 4 Reinforcement 21 | . 2 . . 1 1 . 2 . 1 . . . . 3 2 . . 4 1 . . . . . . . . . . . 4 . . . . Assault 8 | . . . . . 2 . . . . . 1 . 1 . . . . . 2 . . . . . . . . . . . . . . . 2 Garrison 5 | . . . . . 1 . . . 3 . . . . 1 . . . . . . . . . . . . . . . . . . . . . Intercept 7 | . . . . . . . . . . . . . . . . . . . . . . . . . . . . . . . 4 . 3 . . Searches Triggered . | . . . . . . . . . . . . . . . . . . . . . . . . . . . . . . . . . . . . Construction Impeded 4 | . . . . 1 . . . . . . . . . 1 1 . . 1 . . . . . . . . . . . . . . . . . Haulers Reinforced 2 | . . . . . . . . . . . . . . 1 . . . 1 . . . . . . . . . . . . . . . . . Active Scanning Responses . | . . . . . . . . . . . . . . . . . . . . . . . . . . . . . . . . . . . . Cargo Convoy Interrupts . | . . . . . . . . . . . . . . . . . . . . . . . . . . . . . . . . . . . . Stealth | -11 -10 -10 -10 -9 -8 -8 -8 -8 -7 -7 -7 -7 -6 -6 -6 -6 -6 -6 -5 -5 -5 -5 -4 -4 -4 -4 -4 -3 -3 -3 -3 -2 -2 -1 -1 --------- Run | Scr Mat Min Exi Min Mat Gar Mat Gar Fac Low Low Zio Pro Fac Ext Cet Arc Hub Fac Upp Upp War Pro Fac Upp Upp Zhi Pro Res Qua Sec Res Tes Acc Com Distress Signals 28 | . 1 . . . 3 . 4 . . . . . . . 7 2 . 2 4 . . 3 . . . . . . . . 1 . . . 1 Communications Jammed 70 | . . . . . . . . . . . . . . . . . . . . . . . . . . . . . 31 4 28 . 3 . 4 Distress Signals 70 | . . . . . . . . . . . . . . . . . . . . . . . . . . . . . 31 4 28 . 3 . 4 Times Spotted 681 | . 28 5 . 12 63 12 30 13 10 5 21 . 31 19 33 10 7 24 32 13 5 89 12 6 13 16 . 2 39 8 40 4 11 9 59 Peak Tracking Total 19 | . 3 3 . 3 6 4 4 4 3 3 4 . 5 7 5 5 3 5 6 6 3 19 6 2 5 4 . 1 3 1 6 2 4 5 10 Tactical Retreats 28 | . 3 1 . 2 2 4 . . . . 1 . 4 . 1 . . . 1 . . . 3 . . 2 . . . 1 2 . . . 1 Traps | -11 -10 -10 -10 -9 -8 -8 -8 -8 -7 -7 -7 -7 -6 -6 -6 -6 -6 -6 -5 -5 -5 -5 -4 -4 -4 -4 -4 -3 -3 -3 -3 -2 -2 -1 -1 ------- Run | Scr Mat Min Exi Min Mat Gar Mat Gar Fac Low Low Zio Pro Fac Ext Cet Arc Hub Fac Upp Upp War Pro Fac Upp Upp Zhi Pro Res Qua Sec Res Tes Acc Com Traps Triggered 12 | . 1 . . 2 . 2 1 . . . . . . . 1 . . . . . . . . 1 . . . . . . . . 1 1 2 Indirectly 2 | . . . . 2 . . . . . . . . . . . . . . . . . . . . . . . . . . . . . . . Trap Hack Attempts 149 | . 39 . . . 110 . . . . . . . . . . . . . . . . . . . . . . . . . . . . . . Triggered 2 | . 1 . . . 1 . . . . . . . . . . . . . . . . . . . . . . . . . . . . . . Disarmed 1 | . . . . . 1 . . . . . . . . . . . . . . . . . . . . . . . . . . . . . . Reprogrammed 14 | . 9 . . . 5 . . . . . . . . . . . . . . . . . . . . . . . . . . . . . . Reused 20 | . 7 . . . 3 . . . . . 1 . 1 . . . . . . 1 . . 6 . . . . . . 1 . . . . . Traps Extracted 11 | . . . . . . . . . . . 2 . . . . . . . . . . . 9 . . . . . . . . . . . . Installed 26 | . . 5 . . . . . . . . 1 . 1 . . . . . . 1 . . 16 . . . . . . 2 . . . . . Triggered 44 | . 7 . . . 3 . . . . . 1 . 1 . . . . . . 1 . 18 6 . . 2 . . . 5 . . . . . Most Traps Carried 7 | . . 1 . . . . . . . . 7 6 6 5 5 5 5 5 5 5 6 6 7 2 2 3 2 2 2 2 . . . . . Machines | -11 -10 -10 -10 -9 -8 -8 -8 -8 -7 -7 -7 -7 -6 -6 -6 -6 -6 -6 -5 -5 -5 -5 -4 -4 -4 -4 -4 -3 -3 -3 -3 -2 -2 -1 -1 ---------- Run | Scr Mat Min Exi Min Mat Gar Mat Gar Fac Low Low Zio Pro Fac Ext Cet Arc Hub Fac Upp Upp War Pro Fac Upp Upp Zhi Pro Res Qua Sec Res Tes Acc Com Machines Disabled 98 | . 2 11 . 8 4 2 5 . 2 . 2 . 1 2 3 1 3 4 7 2 . 1 1 1 . . . . 2 6 13 . 6 2 7 Max in Single Turn 8 | . 1 6 . 8 1 2 1 . 1 . 2 . 1 1 1 . 1 1 1 1 . 1 1 1 . . . . 1 2 1 . 1 1 2 Garrison Access 6 | . . . . . . . . . 1 . . . . 2 . . . 1 1 . . . . 1 . . . . . . . . . . . Phase Generator 2 | . . . . . . 1 . . . . . . . . . . . . . . . . . . . . . . . . . . . . 1 Machines Sabotaged . | . . . . . . . . . . . . . . . . . . . . . . . . . . . . . . . . . . . . Garrisons Compromised . | . . . . . . . . . . . . . . . . . . . . . . . . . . . . . . . . . . . . Overloaded Fab Kills . | . . . . . . . . . . . . . . . . . . . . . . . . . . . . . . . . . . . . Hacking | -11 -10 -10 -10 -9 -8 -8 -8 -8 -7 -7 -7 -7 -6 -6 -6 -6 -6 -6 -5 -5 -5 -5 -4 -4 -4 -4 -4 -3 -3 -3 -3 -2 -2 -1 -1 --------- Run | Scr Mat Min Exi Min Mat Gar Mat Gar Fac Low Low Zio Pro Fac Ext Cet Arc Hub Fac Upp Upp War Pro Fac Upp Upp Zhi Pro Res Qua Sec Res Tes Acc Com Machines Accessed 104 | . 9 1 . 1 18 . 15 . 4 2 . . . 3 7 1 . 1 5 2 1 7 1 3 . 1 5 1 2 2 4 . 5 3 . Terminals 42 | . 6 1 . 1 11 . 8 . 2 . . . . . 5 1 . . . . . . 1 . . . . 1 . . 2 . . 3 . Fabricators 4 | . . . . . . . . . . . . . . 1 . . . . . . . . . . . . . . 1 . . . 2 . . Repair Stations 12 | . 1 . . . 2 . 2 . 1 . . . . . 1 . . . 2 . . . . 2 . . . . . 1 . . . . . Recycling Units 9 | . 2 . . . 2 . 2 . . . . . . . 1 . . . 2 . . . . . . . . . . . . . . . . Scanalyzers 10 | . . . . . 2 . 2 . . . . . . . . . . . 1 . . . . . . . . . . 1 2 . 2 . . Garrison Access 9 | . . . . . 1 . 1 . 1 . . . . 2 . . . 1 . . . . . 1 . . . . 1 . . . 1 . . Total Hacks 381 | . 30 1 . 1 130 . 99 . 14 2 . . . 9 11 2 . 2 12 2 1 17 3 5 . 1 17 1 3 2 6 . 5 5 . Successful 285 | . 21 1 . 1 104 . 78 . 11 2 . . . 6 6 . . 1 5 2 1 17 3 1 . 1 17 1 2 1 1 . . 2 . Failed 94 | . 8 . . . 25 . 21 . 3 . . . . 3 5 2 . 1 7 . . . . 4 . . . . 1 1 5 . 5 3 . Catastrophic 12 | . . . . . . . 2 . . . . . . 1 . 2 . . . . . . . 1 . . . . . . 2 . 4 . . Database Lockouts 2 | . 1 . . . 1 . . . . . . . . . . . . . . . . . . . . . . . . . . . . . . Manual 275 | . 19 3 4 2 48 . 39 . . . . 1 . 16 14 1 . 11 18 . . . . 12 . . . . 14 10 8 . 27 7 21 Terminals 149 | . 23 1 . 1 58 . 40 . 4 . . . . . 7 2 . . . . . . 3 . . . . 1 . . 4 . . 5 . Fabricators 10 | . . . . . . . . . . . . . . 6 . . . . . . . . . . . . . . 2 . . . 2 . . Repair Stations 58 | . 2 . . . 19 . 18 . 8 . . . . . 2 . . . 4 . . . . 4 . . . . . 1 . . . . . Recycling Units 27 | . 5 . . . 7 . 7 . . . . . . . 2 . . . 6 . . . . . . . . . . . . . . . . Scanalyzers 79 | . . . . . 44 . 28 . . . . . . . . . . . 2 . . . . . . . . . . 1 2 . 2 . . Garrison Access 18 | . . . . . 2 . 6 . 2 . . . . 3 . . . 2 . . . . . 1 . . . . 1 . . . 1 . . Terminal Hacks 106 | . 9 1 . 1 25 . 16 . 2 2 . . . . 5 . . . . 2 1 17 3 . . 1 17 1 . . 1 . . 2 . Record 26 | . . . . . . . . . . . . . . . . . . . . 1 . 16 3 . . . 5 1 . . . . . . . Part Schematic 4 | . . . . . . . . . . . . . . . . . . . . . . . . . . . 4 . . . . . . . . Robot Analysis 19 | . 2 1 . 1 7 . 4 . . . . . . . . . . . . . . . . . . . 4 . . . . . . . . Prototype ID Bank 11 | . 2 . . . 4 . 1 . . . . . . . . . . . . . . . . . . . 4 . . . . . . . . Open Door 14 | . . . . . . . . . . 2 . . . . 5 . . . . 1 1 1 . . . 1 . . . . 1 . . 2 . Open DSF 1 | . . . . . . . . . 1 . . . . . . . . . . . . . . . . . . . . . . . . . . Branch Access Points 2 | . . . . . 1 . . . 1 . . . . . . . . . . . . . . . . . . . . . . . . . . Emergency Access Points 1 | . . . . . . . 1 . . . . . . . . . . . . . . . . . . . . . . . . . . . . Terminal Index 2 | . . . . . 1 . 1 . . . . . . . . . . . . . . . . . . . . . . . . . . . . Alert Level 3 | . . . . . 2 . 1 . . . . . . . . . . . . . . . . . . . . . . . . . . . . Unreport Threat 5 | . . . . . 1 . 4 . . . . . . . . . . . . . . . . . . . . . . . . . . . . Locate Traps 6 | . 2 . . . 3 . 1 . . . . . . . . . . . . . . . . . . . . . . . . . . . . Dispatch Records 1 | . . . . . . . 1 . . . . . . . . . . . . . . . . . . . . . . . . . . . . Patrol Status 1 | . . . . . 1 . . . . . . . . . . . . . . . . . . . . . . . . . . . . . . Hauler Manifests 5 | . 1 . . . 3 . 1 . . . . . . . . . . . . . . . . . . . . . . . . . . . . Registered Components 3 | . 1 . . . 1 . 1 . . . . . . . . . . . . . . . . . . . . . . . . . . . . Zone Layout 2 | . 1 . . . 1 . . . . . . . . . . . . . . . . . . . . . . . . . . . . . . Fabricator Hacks 4 | . . . . . . . . . . . . . . 4 . . . . . . . . . . . . . . . . . . . . . Load Schematic 2 | . . . . . . . . . . . . . . 2 . . . . . . . . . . . . . . . . . . . . . Build 2 | . . . . . . . . . . . . . . 2 . . . . . . . . . . . . . . . . . . . . . Repair Station Hacks 45 | . 2 . . . 16 . 16 . 8 . . . . . 1 . . . 2 . . . . . . . . . . . . . . . . Scan Component 24 | . 1 . . . 9 . 8 . 4 . . . . . 1 . . . 1 . . . . . . . . . . . . . . . . Repair 21 | . 1 . . . 7 . 8 . 4 . . . . . . . . . 1 . . . . . . . . . . . . . . . . Recycling Unit Hacks 1 | . 1 . . . . . . . . . . . . . . . . . . . . . . . . . . . . . . . . . . Retrieve Components 1 | . 1 . . . . . . . . . . . . . . . . . . . . . . . . . . . . . . . . . . Scanalyzer 69 | . . . . . 41 . 28 . . . . . . . . . . . . . . . . . . . . . . . . . . . . Insert Component 27 | . . . . . 16 . 11 . . . . . . . . . . . . . . . . . . . . . . . . . . . . Analyze 42 | . . . . . 25 . 17 . . . . . . . . . . . . . . . . . . . . . . . . . . . . Garrison Access Hacks 5 | . . . . . 1 . 1 . 1 . . . . 1 . . . . . . . . . 1 . . . . . . . . . . . Unlock Access 2 | . . . . . 1 . 1 . . . . . . . . . . . . . . . . . . . . . . . . . . . . Seal Access 3 | . . . . . . . . . 1 . . . . 1 . . . . . . . . . 1 . . . . . . . . . . . Unauthorized Hacks 55 | . 9 . . . 21 . 17 . . . . . . 1 . . . 1 3 . . . . . . . . . 2 1 . . . . . Terminals 24 | . 5 . . . 13 . 6 . . . . . . . . . . . . . . . . . . . . . . . . . . . . Track 7 | . 1 . . . 5 . 1 . . . . . . . . . . . . . . . . . . . . . . . . . . . . Assimilate 1 | . . . . . . . 1 . . . . . . . . . . . . . . . . . . . . . . . . . . . . Botnet 9 | . 2 . . . 4 . 3 . . . . . . . . . . . . . . . . . . . . . . . . . . . . Disrupt 4 | . 1 . . . 3 . . . . . . . . . . . . . . . . . . . . . . . . . . . . . . Operators 3 | . 1 . . . 1 . 1 . . . . . . . . . . . . . . . . . . . . . . . . . . . . Fabricators 2 | . . . . . . . . . . . . . . . . . . . . . . . . . . . . . 2 . . . . . . Liberate 1 | . . . . . . . . . . . . . . . . . . . . . . . . . . . . . 1 . . . . . . Haulers 1 | . . . . . . . . . . . . . . . . . . . . . . . . . . . . . 1 . . . . . . Repair Stations 3 | . . . . . . . 1 . . . . . . . . . . . 1 . . . . . . . . . . 1 . . . . . Mechanics 3 | . . . . . . . 1 . . . . . . . . . . . 1 . . . . . . . . . . 1 . . . . . Recycling Units 18 | . 4 . . . 6 . 6 . . . . . . . . . . . 2 . . . . . . . . . . . . . . . . Monitor 2 | . . . . . 1 . 1 . . . . . . . . . . . . . . . . . . . . . . . . . . . . Reject 6 | . 1 . . . 2 . 2 . . . . . . . . . . . 1 . . . . . . . . . . . . . . . . Recyclers 4 | . 1 . . . 1 . 1 . . . . . . . . . . . 1 . . . . . . . . . . . . . . . . Mask 3 | . . . . . 1 . 2 . . . . . . . . . . . . . . . . . . . . . . . . . . . . Tunnel 3 | . 2 . . . 1 . . . . . . . . . . . . . . . . . . . . . . . . . . . . . . Scanalyzers 2 | . . . . . 2 . . . . . . . . . . . . . . . . . . . . . . . . . . . . . . Extract 2 | . . . . . 2 . . . . . . . . . . . . . . . . . . . . . . . . . . . . . . Garrison Access 6 | . . . . . . . 4 . . . . . . 1 . . . 1 . . . . . . . . . . . . . . . . . Broadcast 1 | . . . . . . . 1 . . . . . . . . . . . . . . . . . . . . . . . . . . . . Decoy 1 | . . . . . . . 1 . . . . . . . . . . . . . . . . . . . . . . . . . . . . Reprogram 1 | . . . . . . . 1 . . . . . . . . . . . . . . . . . . . . . . . . . . . . Watchers 1 | . . . . . . . 1 . . . . . . . . . . . . . . . . . . . . . . . . . . . . Jam 2 | . . . . . . . . . . . . . . 1 . . . 1 . . . . . . . . . . . . . . . . . Data Cores Recovered . | . . . . . . . . . . . . . . . . . . . . . . . . . . . . . . . . . . . . Used . | . . . . . . . . . . . . . . . . . . . . . . . . . . . . . . . . . . . . Hacking Detections 74 | . 8 1 . 1 17 . 13 . 4 . . . . 2 4 1 . 1 5 . . . 1 2 . . . . 2 1 4 . 5 2 . Full Trace Events 2 | . . . . . . . . . 1 . . . . . . . . . . . . . 1 . . . . . . . . . . . . Feedback Events . | . . . . . . . . . . . . . . . . . . . . . . . . . . . . . . . . . . . . Feedback Blocked . | . . . . . . . . . . . . . . . . . . . . . . . . . . . . . . . . . . . . Robot Schematics Acquired 13 | . . . . . . . . . . . . . . 5 . . . . . . . . . . . . . . . . 1 . 7 . . Robots Built 3 | . . . . . . . . . . . . . . 3 . . . . . . . . . . . . . . . . . . . . . Authchips 1 | . . . . . . . . . . . . . . 1 . . . . . . . . . . . . . . . . . . . . . Time 76 | . . . . . . . . . . . . . . 76 . . . . . . . . . . . . . . . . . . . . . Total Robot Build Rating 15 | . . . . . . . . . . . . . . 15 . . . . . . . . . . . . . . . . . . . . . Part Schematics Acquired 95 | . . . . . 18 . 11 . . . . . . . . . . . 11 . . . . . . . 4 . . 27 12 . 12 . . Parts Built 1 | . . . . . . . . . . . . . . 1 . . . . . . . . . . . . . . . . . . . . . Authchips 1 | . . . . . . . . . . . . . . 1 . . . . . . . . . . . . . . . . . . . . . Time 102 | . . . . . . . . . . . . . . 102 . . . . . . . . . . . . . . . . . . . . . Total Part Build Rating 8 | . . . . . . . . . . . . . . 8 . . . . . . . . . . . . . . . . . . . . . Parts Repaired 21 | . 1 . . . 7 . 8 . 4 . . . . . . . . . 1 . . . . . . . . . . . . . . . . Time 944 | . 13 . . . 316 . 373 . 192 . . . . . . . . . 50 . . . . . . . . . . . . . . . . Parts Recycled . | . . . . . . . . . . . . . . . . . . . . . . . . . . . . . . . . . . . . Recycled Matter . | . . . . . . . . . . . . . . . . . . . . . . . . . . . . . . . . . . . . Retrieved Matter . | . . . . . . . . . . . . . . . . . . . . . . . . . . . . . . . . . . . . Retrieved Components 3 | . 3 . . . . . . . . . . . . . . . . . . . . . . . . . . . . . . . . . . Parts Scanalyzed 27 | . . . . . 16 . 11 . . . . . . . . . . . . . . . . . . . . . . . . . . . . Part Schematics Acquired 27 | . . . . . 16 . 11 . . . . . . . . . . . . . . . . . . . . . . . . . . . . Parts Damaged 2 | . . . . . . . 2 . . . . . . . . . . . . . . . . . . . . . . . . . . . . Bothacking | -11 -10 -10 -10 -9 -8 -8 -8 -8 -7 -7 -7 -7 -6 -6 -6 -6 -6 -6 -5 -5 -5 -5 -4 -4 -4 -4 -4 -3 -3 -3 -3 -2 -2 -1 -1 ------------ Run | Scr Mat Min Exi Min Mat Gar Mat Gar Fac Low Low Zio Pro Fac Ext Cet Arc Hub Fac Upp Upp War Pro Fac Upp Upp Zhi Pro Res Qua Sec Res Tes Acc Com Used RIF Installer . | . . . . . . . . . . . . . . . . . . . . . . . . . . . . . . . . . . . . Robots Hacked 23 | . 1 . 4 . . . . . 2 . . 2 . 2 1 1 . . 1 2 1 2 . . . 1 3 . . . . . . . . Non-combat 8 | . 1 . 3 . . . . . 2 . . . . 1 . . . . 1 . . . . . . . . . . . . . . . . Combat 15 | . . . 1 . . . . . . . . 2 . 1 1 1 . . . 2 1 2 . . . 1 3 . . . . . . . . Robot Hacks Applied 124 | . 1 . 100 . . . . . 2 . . 2 . 2 1 1 . . 1 3 3 2 . . . 2 4 . . . . . . . . parse_system 119 | . . . 100 . . . . . . . . 2 . 1 1 1 . . . 3 3 2 . . . 2 4 . . . . . . . . no_distress 2 | . 1 . . . . . . . 1 . . . . . . . . . . . . . . . . . . . . . . . . . . find_chute 3 | . . . . . . . . . 1 . . . . 1 . . . . 1 . . . . . . . . . . . . . . . . Relay Couplers Released 3 | . . . . . . . . . . . . . . . . . . . 3 . . . . . . . . . . . . . . . . Machine Destruction 3 | . . . . . . . . . . . . . . . . . . . 3 . . . . . . . . . . . . . . . . Fabnet Peak Effective % . | . . . . . . . . . . . . . . . . . . . . . . . . . . . . . . . . . . . . Robots Rewired 24 | . . . . . . . . . . . . . 1 . 21 . . . . 2 . . . . . . . . . . . . . . . Allies Hacked 1 | . . . . . . . . . . . . . . . . . . . . . . . . . . . . . . . . . . . 1 Hacks Repelled . | . . . . . . . . . . . . . . . . . . . . . . . . . . . . . . . . . . . . Allies | -11 -10 -10 -10 -9 -8 -8 -8 -8 -7 -7 -7 -7 -6 -6 -6 -6 -6 -6 -5 -5 -5 -5 -4 -4 -4 -4 -4 -3 -3 -3 -3 -2 -2 -1 -1 -------- Run | Scr Mat Min Exi Min Mat Gar Mat Gar Fac Low Low Zio Pro Fac Ext Cet Arc Hub Fac Upp Upp War Pro Fac Upp Upp Zhi Pro Res Qua Sec Res Tes Acc Com Total Allies 69 | . . . . . . . 2 . . . . 4 1 6 30 1 . 3 . 2 1 . . 4 . . . . 3 . . . . 6 6 Largest Group 16 | . . . . . . . 2 1 . . . 4 4 3 16 16 3 3 . 2 3 3 . 4 4 4 2 2 3 . . . . 3 6 Highest-Rated Group 622 | . . . . . . . 31 10 . . . 154 154 170 622 622 157 210 . 60 159 159 . 414 415 415 226 226 219 . . . . 345 345 Highest-Rated Ally 180 | . . . . . . . 21 10 . . . 40 40 85 159 159 96 96 . 30 99 99 . 180 180 180 180 180 173 . . . . 115 115 Zionite Dispatches 9 | . . . . . . . . . . . . . . 2 1 . . 1 . . . . . 3 . . . . . . . . . 2 . Heavy 2 | . . . . . . . . . . . . . . 1 . . . . . . . . . 1 . . . . . . . . . . . Light 2 | . . . . . . . . . . . . . . . . . . 1 . . . . . . . . . . . . . . . 1 . Hacker 1 | . . . . . . . . . . . . . . . . . . . . . . . . . . . . . . . . . . 1 . Demo 1 | . . . . . . . . . . . . . . . 1 . . . . . . . . . . . . . . . . . . . . Hero 1 | . . . . . . . . . . . . . . . . . . . . . . . . 1 . . . . . . . . . . . Thermal Resupply 1 | . . . . . . . . . . . . . . 1 . . . . . . . . . . . . . . . . . . . . . Hacking Resupply 1 | . . . . . . . . . . . . . . . . . . . . . . . . 1 . . . . . . . . . . . Total Orders 81 | . . . . . . . 6 4 . . . . 3 3 2 . . . . 1 6 1 . 2 4 23 15 10 1 . . . . . . STAY 33 | . . . . . . . 3 2 . . . . 1 . 2 . . . . 1 4 1 . . 1 7 3 7 1 . . . . . . ROAM 2 | . . . . . . . . . . . . . . 2 . . . . . . . . . . . . . . . . . . . . . FOLLOW 21 | . . . . . . . 3 2 . . . . 1 . . . . . . . 2 . . 1 . 6 5 1 . . . . . . . DROP 4 | . . . . . . . . . . . . . . 1 . . . . . . . . . . 1 1 . 1 . . . . . . . PICKUP 17 | . . . . . . . . . . . . . . . . . . . . . . . . . 2 7 7 1 . . . . . . . COLLECT 1 | . . . . . . . . . . . . . . . . . . . . . . . . 1 . . . . . . . . . . . EXPLORE 2 | . . . . . . . . . . . . . . . . . . . . . . . . . . 2 . . . . . . . . . RETURN 1 | . . . . . . . . . . . . . 1 . . . . . . . . . . . . . . . . . . . . . . Ally Attacks 700 | . . . . . . . 3 . . . . . 32 21 180 82 22 58 . . 2 23 . 3 20 35 . 34 23 . . . . 10 152 Total Damage 20240 | . . . . . . . 62 . . . . . 1122 387 3900 2005 787 1461 . . 31 1502 . 125 1401 1368 . 865 569 . . . . 293 4362 Kills 123 | . . . . . . . . . . . . . 13 2 36 17 2 10 . . 1 7 . 1 10 9 . 2 4 . . . . 3 6 Allies Corrupted 4 | . . . . . . . . . . . . . . 1 . . . 1 . . . 2 . . . . . . . . . . . . . Allies Melted 2 | . . . . . . . . . . . . . . 1 . . . . . . . 1 . . . . . . . . . . . . . Intel | -11 -10 -10 -10 -9 -8 -8 -8 -8 -7 -7 -7 -7 -6 -6 -6 -6 -6 -6 -5 -5 -5 -5 -4 -4 -4 -4 -4 -3 -3 -3 -3 -2 -2 -1 -1 ------- Run | Scr Mat Min Exi Min Mat Gar Mat Gar Fac Low Low Zio Pro Fac Ext Cet Arc Hub Fac Upp Upp War Pro Fac Upp Upp Zhi Pro Res Qua Sec Res Tes Acc Com Robot Analysis Total 19 | . 2 1 . 1 7 . 4 . . . . . . . . . . . . . . . . . . . 4 . . . . . . . . Derelict Logs Recovered 15 | . . 1 . 1 . . . . . 2 2 . 1 . . . . . . 2 2 . 1 . 1 2 . . . . . . . . . Drone Launches 3 | . . . . . . . . . . . . . 1 . . . . . . . . . . . . 2 . . . . . . . . . Drone Recoveries 1 | . . . . . . . . . . . . . 1 . . . . . . . . . . . . . . . . . . . . . . Decoded 0b10 Intel 333 | . . . . . . . . . . . . . . 34 35 5 4 17 50 . . . . 34 . . . . 83 17 54 . . . . Traps 31 | . . . . . . . . . . . . . . 5 1 . . 2 4 . . . . 2 . . . . 9 1 7 . . . . Emergency Access 24 | . . . . . . . . . . . . . . . 3 . . 3 . . . . . 3 . . . . 11 . 4 . . . . Items 208 | . . . . . . . . . . . . . . 24 24 2 . 9 38 . . . . 23 . . . . 49 12 27 . . . . Machines 34 | . . . . . . . . . . . . . . 2 5 3 1 1 3 . . . . 3 . . . . 5 3 8 . . . . Patrols 16 | . . . . . . . . . . . . . . 2 1 . . . 3 . . . . 1 . . . . 6 1 2 . . . . Guards 13 | . . . . . . . . . . . . . . . . . . 1 1 . . . . 2 . . . . 3 . 6 . . . . Exits 7 | . . . . . . . . . . . . . . 1 1 . 3 1 1 . . . . . . . . . . . . . . . . Zionite Intel Received 27 | . . . . . . . . . . . . . . 2 3 . . 1 2 . . . . 1 . . . . 2 2 2 . 6 . 6 Branch Access 1 | . . . . . . . . . . . . . . . . . . . . . . . . . . . . . . . . . 1 . . Emergency Access 2 | . . . . . . . . . . . . . . . . . . . . . . . . . . . . . . . . . 1 . 1 Guard Positions 2 | . . . . . . . . . . . . . . 1 . . . . . . . . . . . . . . . . . . . . 1 Component Stockpiles 4 | . . . . . . . . . . . . . . . . . . . 1 . . . . . . . . . 1 . . . 1 . 1 Prototype Stockpiles 2 | . . . . . . . . . . . . . . . 1 . . . . . . . . 1 . . . . . . . . . . . Component Schematics 2 | . . . . . . . . . . . . . . . . . . . . . . . . . . . . . . 1 . . 1 . . Prototype Schematics 3 | . . . . . . . . . . . . . . . . . . . 1 . . . . . . . . . . 1 1 . . . . Unaware Schematics 3 | . . . . . . . . . . . . . . 1 . . . . . . . . . . . . . . . . . . 2 . . Unaware Analyses 4 | . . . . . . . . . . . . . . . 1 . . . . . . . . . . . . . . . 1 . . . 2 Trap Installations 1 | . . . . . . . . . . . . . . . 1 . . . . . . . . . . . . . . . . . . . . Active Terminals 1 | . . . . . . . . . . . . . . . . . . . . . . . . . . . . . . . . . . . 1 Active Garrisons 1 | . . . . . . . . . . . . . . . . . . 1 . . . . . . . . . . . . . . . . . Depthwide Sectors/0 1 | . . . . . . . . . . . . . . . . . . . . . . . . . . . . . 1 . . . . . . Exploration | -11 -10 -10 -10 -9 -8 -8 -8 -8 -7 -7 -7 -7 -6 -6 -6 -6 -6 -6 -5 -5 -5 -5 -4 -4 -4 -4 -4 -3 -3 -3 -3 -2 -2 -1 -1 ------------- Run | Scr Mat Min Exi Min Mat Gar Mat Gar Fac Low Low Zio Pro Fac Ext Cet Arc Hub Fac Upp Upp War Pro Fac Upp Upp Zhi Pro Res Qua Sec Res Tes Acc Com Turns Passed 96369 | 106 1393 1079 753 1273 5393 2085 2776 984 1098 3545 7793 4888 7290 1240 1686 372 147 487 1942 2208 3192 1906 17324 1157 2073 5339 741 4282 2876 1003 2868 331 1804 1118 1817 Spaces Moved 40274 | 63 917 922 600 894 2467 1156 1292 566 528 1790 2495 1410 1844 494 857 180 55 232 856 1147 1871 872 4670 575 1161 2713 274 2020 1143 493 1266 176 755 629 891 Core 4 | 3 . . . . . . . . . . . . . . . . . . . . . . . . . . . . . . . . . . 1 Treads 36012 | . . . . 171 2467 1156 1292 566 528 1790 2495 1410 1844 409 337 180 55 232 856 1147 1871 872 4670 500 1161 2713 274 2020 1143 493 1192 176 608 568 816 Legs 571 | . . . . . . . . . . . . . . 51 520 . . . . . . . . . . . . . . . . . . . . Wheels 3331 | 60 917 922 600 723 . . . . . . . . . 34 . . . . . . . . . 75 . . . . . . . . . . . Hover . | . . . . . . . . . . . . . . . . . . . . . . . . . . . . . . . . . . . . Flight . | . . . . . . . . . . . . . . . . . . . . . . . . . . . . . . . . . . . . Fastest Speed 50 | 50 100 95 100 100 155 160 160 160 160 160 160 160 240 160 117 160 160 160 160 160 160 160 162 160 160 160 160 160 150 150 148 161 150 146 100 Average Speed 186 | 97 100 100 100 114 160 160 160 160 160 179 289 308 338 178 143 160 160 160 160 160 160 164 243 162 160 160 160 160 153 156 157 161 156 146 145 Slowest Speed 645 | 100 100 115 100 160 163 160 160 160 160 240 320 320 645 325 240 160 160 160 160 240 240 246 246 242 160 240 160 160 163 160 161 161 161 156 146 Overloaded Moves . | . . . . . . . . . . . . . . . . . . . . . . . . . . . . . . . . . . . . Propulsion Burnouts . | . . . . . . . . . . . . . . . . . . . . . . . . . . . . . . . . . . . . Robots Hopped . | . . . . . . . . . . . . . . . . . . . . . . . . . . . . . . . . . . . . Cave-ins Triggered 1 | . . . . . . . 1 . . . . . . . . . . . . . . . . . . . . . . . . . . . . Teleports 1 | . . . . . . . . . . . . . . . . . . . . . . . . . . . . . . . 1 . . . . Microwarps 40 | . . . . . . . . . . . . . . . . . . . . . . . . . . . . . . . 7 . 19 5 9 Exploration Rate (%) 68 | 5 100 98 88 98 95 89 87 75 9 99 98 92 98 13 87 73 72 30 26 98 98 88 95 13 98 98 60 99 26 63 59 6 85 23 39 Regions Visited 35 Branch Regions 23 Pre-discovered Areas 15 | . 2 . . 1 1 . . . . . . 2 1 . . . . . . . . . . . 1 . 3 . 4 . . . . . . Known Exits Taken 28 | . . . . . 1 . 1 . 1 1 1 1 1 1 1 1 1 1 1 1 1 1 1 1 1 1 1 1 1 1 1 1 1 1 . Unknown Exits Taken 5 | 1 1 1 1 1 . . . . . . . . . . . . . . . . . . . . . . . . . . . . . . . Scrap Searched 38 | . . 1 . 3 . . . . . 3 4 3 4 . . . . . . 4 4 . 2 . 3 5 . 2 . . . . . . . Spaces Dug 345 | . . . . . 5 . 6 13 . 7 16 . 11 8 1 1 . . 34 2 3 17 36 8 . 2 . 27 35 6 29 1 31 11 35 Terrain Destroyed 1324 | . 21 77 . 51 40 104 90 54 1 10 65 . 41 58 3 1 6 9 60 20 7 105 59 9 6 11 . 121 45 9 45 3 44 25 124 Melee 46 | . . . . . 5 . . . . . . . 9 8 . 1 . . 16 1 3 3 . . . . . . . . . . . . . Projectile 445 | . . . . . . 4 21 . 1 7 1 . 2 1 3 . 6 9 44 18 4 27 58 9 6 11 . 7 45 9 45 3 43 15 46 AOE 827 | . 21 77 . 51 35 100 69 54 . 3 64 . 29 49 . . . . . . . 75 . . . . . 114 . . . . . 9 77 Terrain Rammed . | . . . . . . . . . . . . . . . . . . . . . . . . . . . . . . . . . . . . Walls Destroyed . | . . . . . . . . . . . . . . . . . . . . . . . . . . . . . . . . . . . . Machines Disabled . | . . . . . . . . . . . . . . . . . . . . . . . . . . . . . . . . . . . . Actions | -11 -10 -10 -10 -9 -8 -8 -8 -8 -7 -7 -7 -7 -6 -6 -6 -6 -6 -6 -5 -5 -5 -5 -4 -4 -4 -4 -4 -3 -3 -3 -3 -2 -2 -1 -1 --------- Run | Scr Mat Min Exi Min Mat Gar Mat Gar Fac Low Low Zio Pro Fac Ext Cet Arc Hub Fac Upp Upp War Pro Fac Upp Upp Zhi Pro Res Qua Sec Res Tes Acc Com Total 58252 | 91 1225 1013 702 1033 3636 1296 1883 608 716 2067 2963 1950 2777 740 1222 238 82 289 1193 1409 2013 1215 10418 756 1320 3630 574 3041 2022 671 1926 207 1360 808 1158 Wait 13361 | . 116 . . 49 758 59 474 3 99 219 332 473 769 74 172 21 . 4 136 166 69 174 5406 67 107 728 249 922 595 97 285 . 538 127 73 Move 39918 | 62 916 921 599 893 2466 1153 1290 563 527 1789 2494 1409 1843 493 856 179 54 231 855 1146 1870 871 4669 574 1160 2712 273 2019 1142 492 1198 175 626 572 826 Hop . | . . . . . . . . . . . . . . . . . . . . . . . . . . . . . . . . . . . . Pick Up 616 | 12 24 7 1 10 48 1 18 2 13 9 39 40 21 21 15 9 4 4 10 5 11 15 50 18 5 43 10 20 28 7 40 2 20 13 21 Fast Attach 181 | . 1 3 . . 16 . 4 . 4 . 3 3 1 8 7 . . 2 11 3 3 12 6 10 2 9 8 4 4 3 17 3 19 8 7 Attach 256 | 7 2 . . 6 7 . 8 2 6 3 4 3 9 19 4 1 1 1 4 . 5 12 16 5 . 11 . . 14 3 40 2 14 17 30 Detach 55 | . . . . . 2 . . . . . 2 2 1 5 . . . . . . 1 2 3 2 . 3 . . 1 1 19 1 1 5 4 Swap 1029 | 1 17 9 1 8 35 15 11 8 16 16 42 6 39 29 52 9 2 16 55 32 19 37 83 27 17 34 1 29 95 29 132 11 26 23 47 Drop 603 | . 15 14 1 6 53 1 10 1 12 4 8 12 20 21 26 6 5 6 16 7 12 26 42 27 5 46 17 25 23 11 44 3 38 16 24 Fire 1793 | 9 94 53 . 61 132 59 67 29 37 27 34 . 62 56 40 5 16 25 88 41 17 51 127 26 24 42 11 22 120 26 151 10 78 27 126 Melee 254 | . 1 1 100 . 9 5 . . 2 . 4 2 9 14 45 8 . . 18 8 6 15 . . . 2 5 . . . . . . . . Ram . | . . . . . . . . . . . . . . . . . . . . . . . . . . . . . . . . . . . . Kick . | . . . . . . . . . . . . . . . . . . . . . . . . . . . . . . . . . . . . Crush . | . . . . . . . . . . . . . . . . . . . . . . . . . . . . . . . . . . . . Escape Stasis 9 | . . . . . . 3 1 . . . . . . . 5 . . . . . . . . . . . . . . . . . . . . Rewire 2 | . . . . . . . . . . . . . 2 . . . . . . . . . . . . . . . . . . . . . . Trap 175 | . 39 5 . . 110 . . . . . 1 . 1 . . . . . . 1 . . 16 . . . . . . 2 . . . . . Miscellaneous . | . . . . . . . . . . . . . . . . . . . . . . . . . . . . . . . . . . . . Route ------- -11/Scrapyard -10/Materials (discovered 4 exits: [*Mat x3] / *Min) -10/Mines (discovered 3 exits: [*Mat x2] / *Exi) -10/Exiles (discovered 2 exits: *Min x2) -9/Mines (discovered 2 exits: *Mat x2) -8/Materials (discovered 4 exits: *Fac x3 / Gar) -8/Garrison (discovered 3 exits: *Mat x3) -8/Materials (discovered 3 exits: *Fac x2 / Gar) -8/Garrison (discovered 3 exits: *Fac x3) -7/Factory (discovered 3 exits: Sto / *Low x2) -7/Lower Caves -7/Lower Caves (discovered 2 exits: *Fac / *Zio) -7/Zion -6/Proximity Caves -6/Factory (discovered 2 exits: Low / *Ext) -6/Extension (discovered 3 exits: *Fac x2 / *Cet) -6/Cetus (discovered 2 exits: *Fac / *Arc) -6/Archives (discovered 3 exits: Fac / *Hub x2) -6/Hub_04(d) -5/Factory (discovered 3 exits: *Fac x2 / *Upp) -5/Upper Caves -5/Upper Caves (discovered 2 exits: *Fac / *War) -5/Warlord -4/Proximity Caves -4/Factory (discovered 3 exits: *Res / *Upp x2) -4/Upper Caves -4/Upper Caves (discovered 2 exits: *Res / *Zhi) -4/Zhirov -3/Proximity Caves -3/Research (discovered 5 exits: *Res x2 / Arm / *Qua x2) -3/Quarantine -3/Section 7 -2/Research -2/Testing -1/Access -1/Command History --------- Turn | Location | Event 10 | -11/Scrapyard | Discovered new exit (range 16) 107 | -11/Scrapyard | Entered Materials 321 | -10/Materials | Build established: Mutant 462 | -10/Materials | Discovered new exit (range 9) 723 | -10/Materials | Discovered new exit (range 16) 959 | -10/Materials | Central database locked down 1014 | -10/Materials | Repaired Com. Wheel 1021 | -10/Materials | Discovered new exit (range 8) 1090 | -10/Materials | Discovered new exit (range 10) 1500 | -10/Materials | Entered Mines 1508 | -10/Mines | Learned 4 Materials zone layouts 1552 | -10/Mines | Deemed a non-threat by the Exiles lab entrance 1552 | -10/Mines | Discovered new exit (range 5) 1815 | -10/Mines | Discovered new exit (range 11) 1965 | -10/Mines | Found a hidden stash of uninstalled traps 2100 | -10/Mines | Discovered new exit (range 15) 2102 | -10/Mines | Found a damaged Exp. Sensor Array with a note attached 2104 | -10/Mines | Found Prototype Device 2579 | -10/Mines | Entered Exiles 2604 | -10/Exiles | Met 8R-AWN 2622 | -10/Exiles | Met EX-HEX 2672 | -10/Exiles | Met EX-DEC 2690 | -10/Exiles | Visited The Gauntlet 2848 | -10/Exiles | Met EX-BIN 3190 | -10/Exiles | Discovered new exit (range 14) 3318 | -10/Exiles | Discovered new exit (range 15) 3332 | -10/Exiles | Entered Mines 3337 | -9/Mines | Discovered new exit (range 9) 3348 | -9/Mines | Met a Derelict bent on vengeance 3373 | -9/Mines | Learned location of Zion (-7) 3897 | -9/Mines | Assembled infested the area 3950 | -9/Mines | Build established: Scavenger-Mutant 4070 | -9/Mines | Core integrity fell below 50% 4104 | -9/Mines | Lost 5 parts (1p2n2w) 4190 | -9/Mines | Received a Rocket Launcher from a helpful Derelict 4402 | -9/Mines | Build established: Mutant 4587 | -9/Mines | Discovered new exit (range 4) 4605 | -9/Mines | Entered Materials 4605 | -8/Materials | Evolved 4 slots: Propulsion x1, Utility x2, Weapon x1 4606 | -8/Materials | Identified exit to Factory 5036 | -8/Materials | Identified Exp. Sensor Array 5202 | -8/Materials | Build established: Hacker-Gunner 5446 | -8/Materials | Repaired Lgt. Treads 5473 | -8/Materials | Repaired Lgt. Treads 5501 | -8/Materials | Repaired Lgt. Treads 5552 | -8/Materials | Repaired Adv. Heat Sink 5689 | -8/Materials | Repaired Faulty Exp. Sensor Array? 6034 | -8/Materials | Build established: Hacker-Tank 6155 | -8/Materials | Repaired Lgt. Treads 6182 | -8/Materials | Repaired Lgt. Treads 6254 | -8/Materials | Garrison activated, responded to threat 7613 | -8/Materials | Identified exit to Garrison 8270 | -8/Materials | Central database locked down 8445 | -8/Materials | Discovered exit to Factory (range 9) 8958 | -8/Materials | Build established: Gunner 9405 | -8/Materials | First assault squad dispatched 9475 | -8/Materials | Destroyed 8 combat bots 9949 | -8/Materials | Build established: Mutant 9998 | -8/Materials | Entered Garrison 10128 | -8/Garrison | Triggered checkpoint 10498 | -8/Garrison | Discovered new exit (range 14) 10536 | -8/Garrison | Build established: Gunner 10699 | -8/Garrison | Triggered checkpoint 10810 | -8/Garrison | Discovered new exit (range 13) 10995 | -8/Garrison | Triggered checkpoint 11081 | -8/Garrison | Discovered new exit (range 14) 11217 | -8/Garrison | Phase Generator disabled 11412 | -8/Garrison | Build established: Mutant 11779 | -8/Garrison | Attempted to access garrison exit controls, blocked by remote lockdown 11850 | -8/Garrison | Build established: Gunner 11925 | -8/Garrison | Attempted to access garrison exit controls, blocked by remote lockdown 12083 | -8/Garrison | Entered Materials 12391 | -8/Materials | Build established: Hacker-Gunner 12414 | -8/Materials | Repaired Med. Treads 12458 | -8/Materials | Repaired Med. Treads 12502 | -8/Materials | Repaired Med. Treads 12534 | -8/Materials | Repaired Rocket Launcher 12598 | -8/Materials | Repaired Enh. Autogun 12645 | -8/Materials | Repaired Gauss Rifle 12690 | -8/Materials | Repaired Gauss Rifle 12765 | -8/Materials | Identified exit to Garrison 13193 | -8/Materials | Discovered exit to Factory (range 10) 13218 | -8/Materials | Core integrity fell below 50% 13394 | -8/Materials | Repaired Broken Mic. Nuclear Core 14054 | -8/Materials | Crushed by falling debris 14085 | -8/Materials | Lost 3 parts (1p2u) 14137 | -8/Materials | Discovered exit to Factory (range 15) 14369 | -8/Materials | Build established: Tank 14859 | -8/Materials | Entered Garrison 14859 | -8/Garrison | Accompanied by 1 ally 14978 | -8/Garrison | Triggered checkpoint 15056 | -8/Garrison | Discovered exit to Factory (range 10) 15326 | -8/Garrison | Attempted to access garrison exit controls, blocked by remote lockdown 15408 | -8/Garrison | Triggered checkpoint 15523 | -8/Garrison | Discovered exit to Factory (range 13) 15622 | -8/Garrison | Triggered checkpoint 15673 | -8/Garrison | Discovered exit to Factory (range 12) 15695 | -8/Garrison | Attempted to access garrison exit controls, blocked by remote lockdown 15782 | -8/Garrison | Build established: Mutant 15843 | -8/Garrison | Entered Factory 15843 | -7/Factory | Evolved 2 slots: Utility x2 16048 | -7/Factory | Identified exit to Storage 16048 | -7/Factory | Identified exit to Lower Caves 16631 | -7/Factory | Repaired Med. Treads 16679 | -7/Factory | Repaired Med. Treads 16722 | -7/Factory | Garrison activated, responded to threat 16746 | -7/Factory | Repaired Enh. Autogun 16798 | -7/Factory | Repaired Med. Treads 16941 | -7/Factory | Entered Lower Caves 17024 | -7/Lower Caves | Encountered a Warlord checkpoint 17245 | -7/Lower Caves | Build established: Skirmisher 17431 | -7/Lower Caves | Learned Factory terminal intel 17670 | -7/Lower Caves | Build established: Scavenger-Skirmisher 18367 | -7/Lower Caves | Discovered new exit (range 10) 18381 | -7/Lower Caves | Learned 8 Factory zone layouts 19403 | -7/Lower Caves | Found Prototype Device 19778 | -7/Lower Caves | Build established: Scavenger-Mutant 20483 | -7/Lower Caves | Identified exit to Lower Caves 20486 | -7/Lower Caves | Entered another Lower Caves area 20615 | -7/Lower Caves | Discovered new exit (range 6) 20807 | -7/Lower Caves | Identified exit to Zion 21078 | -7/Lower Caves | Build established: Scavenger-Skirmisher 22237 | -7/Lower Caves | Learned Factory emergency access door positions 23160 | -7/Lower Caves | Build established: Hauler-Skirmisher 23993 | -7/Lower Caves | Build established: Hauler-Mutant 24937 | -7/Lower Caves | Build established: Hauler-Assassin 26804 | -7/Lower Caves | Attracted the attention of an 0b10 outpost 26844 | -7/Lower Caves | Destroyed 11 combat bots 27350 | -7/Lower Caves | Identified Heart of Steel 27707 | -7/Lower Caves | Build established: Hauler-Skirmisher 28279 | -7/Lower Caves | Entered Zion 28372 | -7/Zion | Discovered new exit (range 16) 28417 | -7/Zion | Identified exit to Proximity Caves 28491 | -7/Zion | Received a hallucinogenic algorithm 28583 | -7/Zion | Build established: Hauler-Assassin 28862 | -7/Zion | Learned location of Recycling (-7) 28942 | -7/Zion | Learned Factory emergency access door positions 29432 | -7/Zion | Given the Hacking Drone Bay 29527 | -7/Zion | Found GAL Module 30187 | -7/Zion | Learned location of Warlord (-5) 30450 | -7/Zion | Found Prototype Device 30483 | -7/Zion | Identified Mobile Refinery Mk. CCLXVII 30770 | -7/Zion | Build established: Hauler-Mutant 31780 | -7/Zion | Found Prototype Device 32418 | -7/Zion | Imprinted 32422 | -7/Zion | Declared Zion's savior 33167 | -7/Zion | Entered Proximity Caves 33167 | -6/Proximity Caves | Accompanied by 4 allies 33194 | -6/Proximity Caves | Identified Hacking Drone Bay 33763 | -6/Proximity Caves | Build established: Hauler-Skirmisher 34555 | -6/Proximity Caves | Attracted the attention of an 0b10 checkpoint 34646 | -6/Proximity Caves | Discovered new exit (range 15) 35068 | -6/Proximity Caves | Identified exit to Factory 37117 | -6/Proximity Caves | Build established: Hauler-Mutant 37732 | -6/Proximity Caves | Spotted B-75 Beast 39401 | -6/Proximity Caves | Attracted the attention of an 0b10 outpost 40457 | -6/Proximity Caves | Entered Factory 40457 | -6/Factory | Accompanied by 1 ally 40457 | -6/Factory | Evolved 2 slots: Propulsion x1, Utility x1 40458 | -6/Factory | Identified exit to Extension 40460 | -6/Factory | Loaded intel: 28 terminal locations 40619 | -6/Factory | Identified exit to Lower Caves 41014 | -6/Factory | Retrieved Zion intel report: Unaware Schematics 41197 | -6/Factory | Lost 3 parts (1n2u) 41205 | -6/Factory | Fabricated Exp. Sensor Array (x1) 41300 | -6/Factory | Fabricated G-50 Soldier? 41300 | -6/Factory | Lost 3 parts (1n2w) 41323 | -6/Factory | Retrieved Zion intel report: Guard Positions 41324 | -6/Factory | Zion Thermal Resupply teleported in 41571 | -6/Factory | Zion Heavy squad teleported in 41675 | -6/Factory | Terminal network hard line cut 41697 | -6/Factory | Entered Extension 41697 | -6/Extension | Accompanied by 2 allies 41772 | -6/Extension | Rescued a captive Derelict 41773 | -6/Extension | Rescued a captive Derelict 41847 | -6/Extension | Rescued a captive Derelict 41883 | -6/Extension | Retrieved Zion intel report: Trap Installations 41915 | -6/Extension | Retrieved Zion intel report: Unaware Analyses 42008 | -6/Extension | Rescued A7 42134 | -6/Extension | Retrieved Zion intel report: Prototype Stockpiles 42135 | -6/Extension | Zion Demo squad teleported in 42500 | -6/Extension | Build established: Scavenger-Mutant 42588 | -6/Extension | Spotted B-75 Beast 42596 | -6/Extension | Destroyed B-75 Beast 42601 | -6/Extension | Spotted B-75 Beast 42604 | -6/Extension | Allies destroyed B-75 Beast 42617 | -6/Extension | Identified exit to Factory 42850 | -6/Extension | Rescued a captive Derelict 42872 | -6/Extension | Disrupted transfer network 43079 | -6/Extension | Rescued a captive Derelict 43081 | -6/Extension | Rescued a captive Derelict 43225 | -6/Extension | Discovered exit to Factory (range 10) 43227 | -6/Extension | Discovered new exit (range 6) 43232 | -6/Extension | Terminal network hard line cut 43247 | -6/Extension | Identified exit to Cetus 43383 | -6/Extension | Entered Cetus 43383 | -6/Cetus | Accompanied by 16 allies (A7) 43388 | -6/Cetus | Acquired a Cetus Manufacturing Module code from A7 43405 | -6/Cetus | Spotted Cetus Guard 43405 | -6/Cetus | Spotted Cetus Guard 43407 | -6/Cetus | Spotted Cetus Guard 43411 | -6/Cetus | Spotted Cetus Guard 43411 | -6/Cetus | Allies destroyed Cetus Guard 43417 | -6/Cetus | Allies destroyed Cetus Guard 43421 | -6/Cetus | Allies destroyed Cetus Guard 43428 | -6/Cetus | Allies destroyed Cetus Guard 43506 | -6/Cetus | Started Cetus Manufacturing Module 43531 | -6/Cetus | Manufactured an Enhanced Grunt 43550 | -6/Cetus | Cetus Manufacturing Module disabled 43618 | -6/Cetus | Discovered new exit (range 15) 43656 | -6/Cetus | Spotted Cetus Guard 43656 | -6/Cetus | Spotted Cetus Guard 43660 | -6/Cetus | Spotted Cetus Guard 43662 | -6/Cetus | Spotted Cetus Guard 43669 | -6/Cetus | Allies destroyed Cetus Guard 43670 | -6/Cetus | Discovered exit to Factory (range 16) 43671 | -6/Cetus | Allies destroyed Cetus Guard 43675 | -6/Cetus | Allies destroyed Cetus Guard 43676 | -6/Cetus | Allies destroyed Cetus Guard 43687 | -6/Cetus | Scared off Revision 17 43750 | -6/Cetus | Identified exit to Archives 43755 | -6/Cetus | Entered Archives 43755 | -6/Archives | Accompanied by 4 allies (A7) 43796 | -6/Archives | Identified exit to Hub_04(d) 43902 | -6/Archives | Entered Hub_04(d) 43902 | -6/Hub_04(d) | Accompanied by 2 allies 44058 | -6/Hub_04(d) | Found Exp. Thermal Shield 44063 | -6/Hub_04(d) | Destroyed 7 combat bots 44152 | -6/Hub_04(d) | Retrieved Zion intel report: Active Garrisons 44153 | -6/Hub_04(d) | Zion Light squad teleported in 44389 | -6/Hub_04(d) | Entered Factory 44389 | -5/Factory | Evolved 2 slots: Power x1, Weapon x1 44797 | -5/Factory | Discovered new exit (range 15) 44828 | -5/Factory | Identified exit to Factory 45098 | -5/Factory | Discovered exit to Factory (range 16) 45155 | -5/Factory | Retrieved Zion intel report: Component Stockpiles 45181 | -5/Factory | Retrieved Zion intel report: Prototype Schematics 45191 | -5/Factory | Repaired Imp. System Restoration Module? 45286 | -5/Factory | Build established: Scavenger-Assassin 45621 | -5/Factory | Terminal network hard line cut 45893 | -5/Factory | Identified exit to Upper Caves 46189 | -5/Factory | First assault squad dispatched 46331 | -5/Factory | Entered Upper Caves 46441 | -5/Upper Caves | Attracted the attention of an 0b10 checkpoint 46490 | -5/Upper Caves | Identified exit to Upper Caves 46885 | -5/Upper Caves | Build established: Scavenger-Skirmisher 47051 | -5/Upper Caves | Learned Factory terminal intel 47080 | -5/Upper Caves | Found Alien Artifact 47989 | -5/Upper Caves | Build established: Scavenger-Mutant 48317 | -5/Upper Caves | Attracted the attention of an 0b10 outpost 48539 | -5/Upper Caves | Entered another Upper Caves area 48539 | -5/Upper Caves | Accompanied by 2 allies 48566 | -5/Upper Caves | Encountered a Warlord checkpoint 48722 | -5/Upper Caves | Discovered exit to Factory (range 12) 49020 | -5/Upper Caves | Learned Factory stockpile data 49161 | -5/Upper Caves | Build established: Scavenger-Skirmisher 50159 | -5/Upper Caves | Attracted the attention of an 0b10 checkpoint 50175 | -5/Upper Caves | Learned Factory security intel 50196 | -5/Upper Caves | Discovered new exit (range 15) 50326 | -5/Upper Caves | Heart of Steel transformed into Warbot 51021 | -5/Upper Caves | Build established: Scavenger-Assassin 51214 | -5/Upper Caves | Identified exit to Warlord 51731 | -5/Upper Caves | Entered Warlord 51731 | -5/Warlord | Accompanied by 3 allies (Warbot) 51762 | -5/Warlord | Identified Dimensional Node Initializer 51762 | -5/Warlord | Initialized slip node 52246 | -5/Warlord | Build established: Assassin 52257 | -5/Warlord | Found Prototype Special Weapon 52347 | -5/Warlord | Learned Factory repair station intel 52347 | -5/Warlord | Learned Research scanalyzer intel 52347 | -5/Warlord | Learned 4 Quarantine zone layouts 52347 | -5/Warlord | Learned 4 Research zone layouts 52347 | -5/Warlord | Learned Testing trap positions 52347 | -5/Warlord | Learned Quarantine emergency access door positions 52530 | -5/Warlord | Warlord's base attacked by MAIN.C 52576 | -5/Warlord | Found Prototype Energy Gun 52577 | -5/Warlord | Identified Vortex Rifle 52585 | -5/Warlord | Found Prototype Energy Cannon 52586 | -5/Warlord | Identified Vortex Cannon 52592 | -5/Warlord | Found Prototype Launcher 52786 | -5/Warlord | Rebuked by Warlord 52828 | -5/Warlord | Found Prototype Device 52828 | -5/Warlord | Identified Thermal Barrier 52831 | -5/Warlord | Found Prototype Processor 52831 | -5/Warlord | Identified Exp. Target Analyzer 52843 | -5/Warlord | Found Prototype Reactor 52880 | -5/Warlord | Warlord forces counterattacked 52939 | -5/Warlord | Spotted B-75 Beast 52949 | -5/Warlord | Spotted Striker 52950 | -5/Warlord | Spotted Executioner 52963 | -5/Warlord | Spotted B-86 Titan 52963 | -5/Warlord | Destroyed Striker 52968 | -5/Warlord | Destroyed B-86 Titan 53030 | -5/Warlord | Spotted Executioner 53076 | -5/Warlord | Discovered new exit (range 14) 53117 | -5/Warlord | Found Exp. Core Analyzer 53130 | -5/Warlord | Spotted Striker 53140 | -5/Warlord | Allies destroyed Striker 53166 | -5/Warlord | Destroyed 11 combat bots 53200 | -5/Warlord | Identified Vortex Catalyst Activator 53205 | -5/Warlord | Warlord base infiltrated, sounded retreat 53230 | -5/Warlord | Spotted Striker 53233 | -5/Warlord | Destroyed Striker 53256 | -5/Warlord | Destroyed 15 combat bots 53330 | -5/Warlord | Destroyed Executioner 53330 | -5/Warlord | Spotted Striker 53330 | -5/Warlord | Spotted Executioner 53351 | -5/Warlord | Destroyed 15 combat bots 53376 | -5/Warlord | Identified exit to Proximity Caves 53465 | -5/Warlord | Destroyed 16 combat bots 53521 | -5/Warlord | Identified RU-N14's Throwing Claymores v3 53537 | -5/Warlord | Spotted Executioner 53539 | -5/Warlord | Destroyed Executioner 53548 | -5/Warlord | Destroyed Executioner 53572 | -5/Warlord | Destroyed 18 combat bots 53605 | -5/Warlord | System corruption reached 10% 53637 | -5/Warlord | Entered Proximity Caves 53643 | -4/Proximity Caves | Identified Vortex Chain Reactor 53654 | -4/Proximity Caves | Destroyed 8 combat bots 53665 | -4/Proximity Caves | Lost 3 parts (2p1n) 53905 | -4/Proximity Caves | Build established: Scavenger-Skirmisher 54086 | -4/Proximity Caves | Lost 8 parts (2n1u5w) 54448 | -4/Proximity Caves | Discovered exit to Factory (range 9) 54870 | -4/Proximity Caves | Build established: Scavenger-Mutant 56349 | -4/Proximity Caves | Build established: Scavenger-Skirmisher 57530 | -4/Proximity Caves | Build established: Scavenger-Mutant 63506 | -4/Proximity Caves | Build established: Scavenger-Skirmisher 64357 | -4/Proximity Caves | Build established: Scavenger-Mutant 64903 | -4/Proximity Caves | Learned Armory garrison access intel 64903 | -4/Proximity Caves | Learned Research security intel 65032 | -4/Proximity Caves | Build established: Scavenger-Skirmisher 65749 | -4/Proximity Caves | Build established: Scavenger-Gunner 66282 | -4/Proximity Caves | Build established: Scavenger-Skirmisher 67485 | -4/Proximity Caves | Build established: Scavenger-Mutant 70961 | -4/Proximity Caves | Entered Factory 70961 | -4/Factory | Evolved 2 slots: Propulsion x1, Utility x1 70962 | -4/Factory | Identified exit to Upper Caves 70965 | -4/Factory | Loaded intel: 26 terminal locations 70966 | -4/Factory | Loaded intel: 6 repair station locations 71443 | -4/Factory | Retrieved Zion intel report: Prototype Stockpiles 71444 | -4/Factory | Zion hero teleported in (7V-RTL) 71546 | -4/Factory | Discovered new exit (range 2) 71547 | -4/Factory | Identified exit to Research 71656 | -4/Factory | Found Prototype Hackware 71656 | -4/Factory | Identified Exp. Hacking Suite 71707 | -4/Factory | Zion Heavy squad teleported in 72031 | -4/Factory | Zion Hacking Resupply teleported in 72115 | -4/Factory | Build established: Mutant 72118 | -4/Factory | Entered Upper Caves 72118 | -4/Upper Caves | Accompanied by 4 allies (7V-RTL) 72764 | -4/Upper Caves | Build established: Skirmisher 72811 | -4/Upper Caves | Learned location of Testing (-2) 72960 | -4/Upper Caves | Discovered new exit (range 12) 74190 | -4/Upper Caves | Identified exit to Upper Caves 74191 | -4/Upper Caves | Entered another Upper Caves area 74191 | -4/Upper Caves | Accompanied by 4 allies (7V-RTL) 74467 | -4/Upper Caves | Discovered exit to Research (range 12) 74526 | -4/Upper Caves | Build established: Mutant 74551 | -4/Upper Caves | P-70 Sage assimilated allied MI-GIY(Z) 74603 | -4/Upper Caves | Spotted B-86 Titan 74668 | -4/Upper Caves | Lost 3 parts (1p2w) 74680 | -4/Upper Caves | Found Zio. Weapon Casing 74987 | -4/Upper Caves | Found Zio. Heavy Carapace 75033 | -4/Upper Caves | Learned location of 2 exits from Research 75252 | -4/Upper Caves | Build established: Scavenger-Mutant 76143 | -4/Upper Caves | Discovered new exit (range 13) 76167 | -4/Upper Caves | Identified exit to Zhirov 76190 | -4/Upper Caves | Build established: Scavenger-Skirmisher 76840 | -4/Upper Caves | Attracted the attention of an 0b10 checkpoint 77061 | -4/Upper Caves | Build established: Scavenger-Gunner 78800 | -4/Upper Caves | Build established: Scavenger-Tank 79530 | -4/Upper Caves | Entered Zhirov 79530 | -4/Zhirov | Accompanied by 2 allies (7V-RTL) 79530 | -4/Zhirov | Discovered new exit (range 3) 79559 | -4/Zhirov | Met Zhirov 79630 | -4/Zhirov | Learned location of Command (-1) 79630 | -4/Zhirov | Learned location of Quarantine (-3) 79640 | -4/Zhirov | Zhirov requested help retrieving the SGEMP Prototype 79649 | -4/Zhirov | Build established: Scavenger-Mutant 79669 | -4/Zhirov | Found Alien Artifact 79669 | -4/Zhirov | Identified Integrated Reactor 79669 | -4/Zhirov | Installed Integrated Reactor, increased core energy generation (+10) 80161 | -4/Zhirov | Found Alien Artifact 80246 | -4/Zhirov | Identified exit to Proximity Caves 80271 | -4/Zhirov | Entered Proximity Caves 80271 | -3/Proximity Caves | Accompanied by 2 allies (7V-RTL) 80685 | -3/Proximity Caves | Build established: Scavenger-Skirmisher 81021 | -3/Proximity Caves | Build established: Scavenger-Mutant 81691 | -3/Proximity Caves | Discovered exit to Research (range 15) 83044 | -3/Proximity Caves | Spotted B-86 Titan 83346 | -3/Proximity Caves | Build established: Scavenger-Tank 84553 | -3/Proximity Caves | Entered Research 84553 | -3/Research | Accompanied by 2 allies (7V-RTL) 84553 | -3/Research | Evolved 2 slots: Propulsion x1, Utility x1 84554 | -3/Research | Identified exit to Armory 84554 | -3/Research | Identified exit to Quarantine 84555 | -3/Research | Identified exit to Research 84558 | -3/Research | Loaded intel: 6 scanalyzer locations 84758 | -3/Research | Spotted B-86 Titan 84769 | -3/Research | Destroyed B-86 Titan 85155 | -3/Research | Build established: Scavenger-Mutant 85349 | -3/Research | Retrieved Zion intel report: Component Stockpiles 85540 | -3/Research | Retrieved Zion intel report: Depthwide Sectors/0 85776 | -3/Research | Terminal network hard line cut 86059 | -3/Research | Discovered exit to Research (range 16) 87195 | -3/Research | Build established: Scavenger-Skirmisher 87429 | -3/Research | Entered Quarantine 87466 | -3/Quarantine | Found Alien Artifact 87725 | -3/Quarantine | Found Alien Artifact 87856 | -3/Quarantine | Found Alien Artifact 87856 | -3/Quarantine | Identified Subatomic Replicator 87890 | -3/Quarantine | Retrieved Zion intel report: Prototype Schematics 88136 | -3/Quarantine | Retrieved Zion intel report: Component Schematics 88283 | -3/Quarantine | Identified Phase Redirector 88292 | -3/Quarantine | Identified Phase Armor 88302 | -3/Quarantine | Spotted Fortress 88412 | -3/Quarantine | Discovered new exit (range 7) 88419 | -3/Quarantine | Identified exit to Section 7 88432 | -3/Quarantine | Entered Section 7 88504 | -3/Section 7 | Found Alien Artifact 88542 | -3/Section 7 | Identified Integrated Dissipator 88542 | -3/Section 7 | Installed Integrated Dissipator, increased core heat dissipation (+20) 88646 | -3/Section 7 | Spotted S7 Guard 88752 | -3/Section 7 | Destroyed S7 Guard 88812 | -3/Section 7 | Identified Transdimensional Reconstructor 88812 | -3/Section 7 | Warped through subspace 88815 | -3/Section 7 | Found Alien Artifact 88907 | -3/Section 7 | Scanned by Researcher 88982 | -3/Section 7 | Found Alien Artifact 88983 | -3/Section 7 | Identified Integrated Mediator 88983 | -3/Section 7 | Installed Integrated Mediator, increased core attachment efficiency. 89078 | -3/Section 7 | Retrieved Zion intel report: Unaware Analyses 89122 | -3/Section 7 | Spotted S7 Guard 89174 | -3/Section 7 | Found Integrated Reactor 89175 | -3/Section 7 | Installed Integrated Reactor, increased core energy generation (+10) 89217 | -3/Section 7 | Build established: Scavenger-Mutant 89237 | -3/Section 7 | Found Alien Artifact 89238 | -3/Section 7 | Identified Core Reset Matrix 89238 | -3/Section 7 | Identified Core Physics Calibrator 89238 | -3/Section 7 | Used Core Reset Matrix 89242 | -3/Section 7 | Sensed 21 artifacts in vicinity 89439 | -3/Section 7 | Retrieved Zion intel report: Prototype Schematics 89527 | -3/Section 7 | Spotted Executioner 89529 | -3/Section 7 | Spotted Executioner 89539 | -3/Section 7 | Destroyed Executioner 89545 | -3/Section 7 | Core integrity fell below 50% 89553 | -3/Section 7 | Destroyed Executioner 89623 | -3/Section 7 | Found Hpw. Transdimensional Reconstructor 89627 | -3/Section 7 | Found Transdimensional Reconstructor 89766 | -3/Section 7 | Intercept squad dispatched 89778 | -3/Section 7 | Spotted Tracker 89782 | -3/Section 7 | Destroyed Tracker 89806 | -3/Section 7 | Spotted Combat Programmer 89811 | -3/Section 7 | Destroyed Combat Programmer 89822 | -3/Section 7 | Found Prototype Energy Gun 89889 | -3/Section 7 | Terminal network hard line cut 89901 | -3/Section 7 | Spotted S7 Guard 89924 | -3/Section 7 | Destroyed S7 Guard 89935 | -3/Section 7 | Found Core Regenerator 89935 | -3/Section 7 | Used Core Regenerator, restored core integrity (+325) 89947 | -3/Section 7 | Identified Immobilizer 90043 | -3/Section 7 | Found Microwarp Drive 90363 | -3/Section 7 | Found Prototype Launcher 90363 | -3/Section 7 | Identified Com. Tesla Bomb Launcher 90396 | -3/Section 7 | Spotted B-99 Colossus 90487 | -3/Section 7 | Found LRC Matter Compressor 90487 | -3/Section 7 | Installed LRC Matter Compressor, increased matter storage capacity (+125) 90498 | -3/Section 7 | Used Subatomic Replicator to replicate LRC Storage 90500 | -3/Section 7 | Found LRC Storage 90500 | -3/Section 7 | Installed LRC Storage, increased inventory capacity (+2) 90504 | -3/Section 7 | Installed LRC Storage, increased inventory capacity (+2) 90571 | -3/Section 7 | Build established: Alien-Skirmisher 90575 | -3/Section 7 | Intercept squad dispatched 90595 | -3/Section 7 | Spotted Tracker 90606 | -3/Section 7 | Destroyed Tracker 90639 | -3/Section 7 | Spotted Combat Programmer 90648 | -3/Section 7 | Destroyed Combat Programmer 90726 | -3/Section 7 | Found Integrity Redistributor 90729 | -3/Section 7 | Found Integrity Redistributor 90731 | -3/Section 7 | Found Integrity Redistributor 91111 | -3/Section 7 | Spotted S7 Guard 91131 | -3/Section 7 | Destroyed S7 Guard 91142 | -3/Section 7 | Found Core Membrane 91157 | -3/Section 7 | Installed Core Membrane, gained immunity to corruption 91231 | -3/Section 7 | Discovered exit to Research (range 5) 91300 | -3/Section 7 | Entered Research 91300 | -2/Research | Evolved 2 slots: Propulsion x1, Utility x1 91488 | -2/Research | Discovered new exit (range 20) 91624 | -2/Research | Identified exit to Testing 91631 | -2/Research | Entered Testing 91713 | -2/Testing | Found Prototype Energy Cannon 91806 | -2/Testing | Retrieved Zion intel report: Component Schematics 91880 | -2/Testing | Found Prototype Ballistic Gun 91880 | -2/Testing | Identified Hyp. Multirail 91903 | -2/Testing | Retrieved Zion intel report: Emergency Access 91962 | -2/Testing | Build established: Alien-Mutant 92175 | -2/Testing | Found Prototype Ballistic Cannon 92175 | -2/Testing | Identified Omega Cannon 92246 | -2/Testing | Intercept squad dispatched 92248 | -2/Testing | Spotted Tracker 92249 | -2/Testing | Spotted Tracker 92251 | -2/Testing | Destroyed Tracker 92256 | -2/Testing | Destroyed Tracker 92280 | -2/Testing | Spotted Combat Programmer 92281 | -2/Testing | Spotted Combat Programmer 92297 | -2/Testing | Destroyed Combat Programmer 92319 | -2/Testing | Destroyed Combat Programmer 92329 | -2/Testing | Found Prototype Processor 92333 | -2/Testing | Identified Exp. Targeting Computer 92370 | -2/Testing | Discovered new exit (range 8) 92385 | -2/Testing | Identified exit to Access 92434 | -2/Testing | Retrieved Zion intel report: Branch Access 92485 | -2/Testing | Retrieved Zion intel report: Component Stockpiles 92747 | -2/Testing | Found Corrupted Prototype Ballistic Gun 92748 | -2/Testing | Identified Multirail 92834 | -2/Testing | Retrieved Zion intel report: Unaware Schematics 92949 | -2/Testing | Retrieved Zion intel report: Unaware Schematics 93047 | -2/Testing | Identified Potential Cannon 93211 | -2/Testing | Terminal network hard line cut 93435 | -2/Testing | Entered Access 93435 | -1/Access | Evolved 2 slots: Utility x2 93700 | -1/Access | Zion Hacker squad teleported in 93843 | -1/Access | Build established: Alien-Skirmisher 94099 | -1/Access | Found Prototype Energy Gun 94249 | -1/Access | Discovered new exit (range 19) 94397 | -1/Access | Zion Light squad teleported in 94430 | -1/Access | Identified exit to Command 94553 | -1/Access | Entered Command 94553 | -1/Command | Accompanied by 3 allies 94596 | -1/Command | Build established: Alien-Mutant 94620 | -1/Command | Spotted B-99 Colossus 94639 | -1/Command | Destroyed B-99 Colossus 94662 | -1/Command | Found Unknown Protection 94662 | -1/Command | Identified Hvy. Insulated Plating 94670 | -1/Command | Found Multirail 94671 | -1/Command | Identified Enh. Gamma Rifle 94762 | -1/Command | Retrieved Zion intel report: Guard Positions 95003 | -1/Command | Retrieved Zion intel report: Unaware Analyses 95015 | -1/Command | Retrieved Zion intel report: Emergency Access 95151 | -1/Command | Phase Generator disabled 95217 | -1/Command | Retrieved Zion intel report: Unaware Analyses 95393 | -1/Command | Found Prototype Protection 95474 | -1/Command | Retrieved Zion intel report: Active Terminals 95496 | -1/Command | Retrieved Zion intel report: Component Stockpiles 95593 | -1/Command | Identified Zio. Weapon Casing 95853 | -1/Command | First assault squad dispatched 95878 | -1/Command | Terminal network hard line cut 95937 | -1/Command | Used Integrity Redistributor, redistributed integrity from core (-407) 95938 | -1/Command | Core integrity fell below 50% 96267 | -1/Command | Emitted hypermatrix ping 96267 | -1/Command | Met MAIN.C 96272 | -1/Command | Assembled emerged from beneath the floor 96275 | -1/Command | 0b10 Conduit disabled 96292 | -1/Command | Destroyed MAIN.C Shell 96295 | -1/Command | MAIN.C activated Command garrisons 96323 | -1/Command | Spotted Combat Programmer 96324 | -1/Command | Used Integrity Redistributor, redistributed integrity to core (+324) 96325 | -1/Command | Used Integrity Redistributor, redistributed integrity to core (+13) 96340 | -1/Command | Spotted M Guard 96347 | -1/Command | Spotted M Guard 96363 | -1/Command | Spotted Combat Programmer 96365 | -1/Command | Core integrity fell below 20% 96368 | -1/Command | Failed to warp due to unstable space 96370 | -1/Command | Destroyed by H-88 Terminator with KE Penetrator Last Messages --------------- 96363_ Lgt. Quantum Reactor destroyed. 96363_ Rnf. Quantum Reactor blasted off. 96363_ Knocked back. 96364_ Microwarped (distance 8). 96365_ Knocked back. 96365_ EMDS Slug penetrates 0b10 Conduit. 96365_ Microwarped (distance 2). 96365_ Penetrated by EMDS Slug. 96366_ Microwarped (distance 2). 96367_ Penetrated by Slug. 96367_ Slug penetrates M Guard. 96367_ Core Membrane filtered system corruption (1). 96367_ Microwarped (distance 6). 96368_ Exp. Core Analyzer destroyed. 96368_ Penetrated by EMDS Slug. 96368_ Core Membrane filtered system corruption (1). 96368_ Warp failed due to unstable space. 96369_ Microwarped (distance 2). 96369_ Penetrated by EMDS Slug. 96370_ Penetrated by Slug. Map ----- +----------------------------------------------------+ | ?????????????????????????????????????????????????? | | ?????????????????????????????????????????????????? | | ?????????????????????????????????????????????????? | | ?????????????????????????????????????????????????? | | ?????????????????????????????????????????????????? | | ?????????????????????????????????????????????????? | | ?????????????????????????????????????????# ?##?##? | | ??????????????????????????????????????#??#???# ??? | | ????????????????????????????????????# ? ? ? | | ????????????????????????????????????#??##?#? ?### | | ?????????????????????????????????##?#?????## ??? | | ????????????????????????????????#?#???????## #?# | | ??????????????????????????????????#?#?#????# #?# | | ??????????????????????????????#?????####?### ### | | ??????????????????????????????##????#??#?### #?# | | ??????????????????????????????#####??#?????# ### | | ?????????????????????????????##??#?#???##?## ##? | | ???????????????????????????????#?#?##?#?#### ### | | ?????????????????????????????##?##?##??#??## ### | | ????????????????????????????#???##???##???## #?# | | ???????????????????????????##?##?#??????#??# ##? | | ###################???????????#??#???#?#??## #?# | | "" #????????#??##?###?####### ### | | *!! % #???????????###??#?#?# " ### | | "" %%!!!%% ####################### " ### | | %[= pg @ g !### | | % Y x # ##? | | """ pYp % h # # ### | | "" % ################### #### ### | | """" "?????????#??##?????""#### "## | | #????????####?#?#?????######## # | | % %""#??????#?##??#?#??# ? T### ?#" | | """""" """#?????????#?##???????+?### ### | | "" " """"#?????????#??#??#???? | | " """""""""#???????????###?### | | " " " " #??????????#??#????? ? | | ?? " " " " #????????#????###?? ? ? | | ???? ? " """" " #?????????#?##?###?? | | ???? ? " ?"""" #????????????#????#?? ### ### | | ???? ? "????" ???????????????#????#?##### ### | | ???????? ?????????????????????????#???##?######?## | | ???????????????????????????????????##?###### ??# | | ????????????????????????????????????????#??# ### | | ???????????????????????????????????????###?? #?# | | ????????????????????????????????????????#??? ? ### | | ?????????????????????????????????????#????##?? ?## | | ??????????????????????????????????????#?##?# ##? | | ?????????????????????????????????????????#???? ### | | ???????????????????????????????????????????? #?# | | ??????????????????????????????????????????##? ### | +----------------------------------------------------+ Best States ------------- Heat Dissipation 129 Coolant Potential 100 Energy Generation 69 Energy Capacity 1090 Matter Stores 425 Matter Capacity 425 Sight Range 20 Robot Scan Range 20 Terrain Scan Range 20 Terrain Scan Density 210 Jamming Range 16 Cloak Strength 3 Corruption Containment 12 Corruption Block 9 Armor Coverage 2400 Resistance: KI 30 Resistance: TH 30 Resistance: EM 30 Utility Shielding 66 Weapon Shielding 100 Weapon Cycling 15 Phase Shifting 10 Evasion (%) 55 Targeting Accuracy 20 Core Analysis 8 Recoil Reduction 7 Offensive Hacking 10 Defensive Hacking 26 Authchip Count 2 Trap Extractor Capacity 8 Item Schematics ----------------- Hvy. Proton Cannon | -3/Section 7 | Z-intel Exp. Melee Analysis Suite | -3/Section 7 | Z-intel Diametric Drive | -3/Section 7 | Z-intel Cld. Impulse Thruster | -3/Section 7 | Z-intel Hdn. Centrium Wheel | -3/Section 7 | Z-intel Gravity Neutralizer | -3/Section 7 | Z-intel Prc. Matter Filter | -3/Section 7 | Z-intel Neutron Cannon | -3/Section 7 | Z-intel Coolant Network | -3/Section 7 | Z-intel Dispersion Rifle | -2/Testing | Z-intel Hvy. Disruptor Cannon | -2/Testing | Z-intel Imp. Melee Analysis Suite | -2/Testing | Z-intel Imp. Recalibrator | -2/Testing | Z-intel Adv. Salvage Targeting Computer | -2/Testing | Z-intel Imp. Signal Interpreter | -2/Testing | Z-intel Imp. Heavy Treads | -2/Testing | Z-intel Hcp. Storage Unit | -2/Testing | Z-intel Imp. Component Analysis Suite | -2/Testing | Z-intel Antigrav System | -2/Testing | Z-intel Smartbomb Launcher | -2/Testing | Z-intel Lrg. Storage Unit | -2/Testing | Z-intel Robot Schematics ------------------ R-06 Scavenger | -2/Testing | Z-intel B-74 Champion | -2/Testing | Z-intel A-15 Conveyor | -2/Testing | Z-intel C-65 Expert | -2/Testing | Z-intel K-01 Serf | -2/Testing | Z-intel E-15 Imp | -2/Testing | Z-intel Y-72 Warden | -2/Testing | Z-intel Fabricated ------------ Exp. Sensor Array | x1 | -6/Factory | Authchip G-50 Soldier | x3 | -6/Factory | Authchip Alien Tech Used ----------------- Dimensional Node Initializer Integrated Reactor Subatomic Replicator Phase Redirector Phase Armor Integrated Dissipator Transdimensional Reconstructor Integrated Mediator Core Reset Matrix Core Physics Calibrator Core Regenerator Microwarp Drive LRC Matter Compressor LRC Storage Core Membrane Integrity Redistributor High-powered Transdimensional Reconstructor Achievements -------------- Artifact Hunter Challenges ------------ None Game ------ Seed CouplerBattleRailgun Manual? 0 Play Time 16:50:35 Cumulative 532.1 hours Start 2022.05.15 @ 15:30:33 End 2022.12.29 @ 18:33:36 Sessions 44 Manual Loads 0 Difficulty Rogue Special Mode None Game No. 117 Rogue 94 Adventurer 23 Explorer 0 Win Type - Total 21 Types 15/0/3/1/1/0/0/1/0 Lore% 92 Gallery% 92 Achievement% 81 Wizard Run 0 Options --------- ASCII 0 Keyboard 0 Movement Mouse Keybinds 0 Fullscreen 1 Font 36/Smallcaps Map View 76x50 Tactical HUD 1 Map Filters NONE Filters NONE Steam 1 RUN: 701e0850-53b4-41d3-bcc8-7be28bf01cd1